Cogmind - Beta 11 X8 @@@ ROGUE MODE // 2021.10.27 @ 10:43:34 Player: Warlord with Style Result: Escaped singularity! Performance ------------- Evolutions (9) 4500 Regions Visited (36) 7200 Robots Destroyed (651) 3255 Value Destroyed (35276) 35276 Prototype IDs (129) 2580 Alien Tech Used (10) 2000 Bonus (55700) 55700 TOTAL SCORE: 110511 Bonus ------- High Alert Combat Kills 5573 Follower Combat Kills 1973 Network Hubs Disabled 200 Aligned with FarCom 300 Met Data Miner 300 Met Zhirov 300 Met Warlord at Base 500 MAIN.C Attacked Warlord 500 Warlord Defense Kill 1632 Built Enhanced Grunts 300 A7 Reached Mainframe 300 Met R17 at Cetus 500 Met R17 at Research 2000 Destroyed MAIN.C Guards 500 Met MAIN.C 5000 Hacked MAIN.C 300 Destroyed MAIN.C Shell 5000 Destroyed MAIN.C 10000 Met Warlord at Command 2000 Met Architect 300 Destroyed A8 300 Destroyed A6 400 Destroyed A5 500 Destroyed A4 700 Destroyed Architect 15000 Win 3000 Friendly Fire -1678 Cogmind --------- Core Integrity 916/1600 Matter 160/300 Energy 820/840 System Corruption 0% Temperature Cool (12) Movement Walking (115) Location Near Former Tau Ceti IV Parts ------- > --- POWER (3) -------- Zero-point Reactor Vortex Chain Reactor > --- PROPULSION (7) --- Centrium Leg Centrium Leg High-density Centrium Leg High-density Centrium Leg High-density Centrium Leg High-density Centrium Leg Experimental Biometal Leg > --- UTILITY (11) ----- Coolant Network Huge Storage Unit Experimental Targeting Computer Quantum Capacitor Advanced Phase Shifter Heavy Regenerative Plating Experimental Shield Generator > --- WEAPON (4) ------- Null Cannon Sigix Broadsword > --- INVENTORY (25) --- Improved Quantum Reactor Enhanced Flexi-carbon Leg Enhanced Flexi-carbon Leg Centrium Leg Advanced Phase Shifter Advanced Phase Shifter Advanced Phase Shifter Advanced Phase Shifter Layered Medium Armor Plating Experimental Powered Armor Experimental Powered Armor Experimental Powered Armor AEGIS Remote Shield Cooled Proton Cannon Neutron Cannon Neutron Cannon Graviton Cannon Peak State ------------ > --- POWER ------------ Singularity Reactor > --- PROPULSION ------- Centrium Leg High-density Centrium Leg High-density Centrium Leg High-density Centrium Leg High-density Centrium Leg Experimental Biometal Leg Experimental Biometal Leg > --- UTILITY ---------- Huge Storage Unit Experimental Targeting Computer Experimental Targeting Computer Quantum Capacitor Advanced Reaction Control System Advanced Phase Shifter Heavy Regenerative Plating EM Dispersion Field Experimental Force Field > --- WEAPON ----------- Null Cannon Graviton Cannon Sigix Broadsword > --- INVENTORY -------- Zero-point Reactor Vortex Chain Reactor Enhanced Flexi-carbon Leg Centrium Leg Centrium Leg Experimental Power Amplifier Experimental Energy Well Experimental Matter Compressor Experimental Targeting Computer Advanced Phase Shifter Advanced Phase Shifter Advanced Phase Shifter Advanced Phase Shifter Advanced Phase Shifter Advanced Phase Shifter Improved Utility Shielding Improved Utility Shielding Experimental Shield Generator AEGIS Remote Shield AEGIS Remote Shield Long-range Tractor Beam Compact HERF Cannon Null Cannon Graviton Cannon [Rating: 251] Favorites ----------- Power Zero-point Reactor Engine Ion Engine Power Core Micro Fission Core Reactor Zero-point Reactor Propulsion Light Treads Treads Light Treads Leg High-density Centrium Leg Wheel Armored Huge Wheel Hover Unit Cooled Gravmag System Utility Experimental Targeting Computer Device Experimental Cooling System Storage High-capacity Storage Unit Processor Experimental Targeting Computer Hackware System Mapper Protection Improved Utility Shielding Artifact Matter Drive Weapon Enhanced Autogun Energy Gun Precision Phase Gun Energy Cannon Null Cannon Ballistic Gun Enhanced Autogun Ballistic Cannon Graviton Cannon Launcher Rocket Launcher Special Weapon RU-N14's Throwing Claymores v3 Impact Weapon Core Stripper Slashing Weapon Sigix Broadsword Piercing Weapon Makeshift Spear Special Melee Weapon Advanced Datajack Build | -11 -10 -10 -9 -9 -9 -8 -8 -8 -7 -7 -7 -7 -6 -6 -6 -6 -6 -6 -5 -5 -5 -5 -4 -4 -4 -4 -4 -3 -3 -3 -2 -2 -2 -1 -1 -1 ------- Run | Scr Mat Min Mat Min Exi Min Mat Sto Fac Low Low Dat Pro Fac Ext Cet Arc Hub Fac Upp Upp Zhi Pro Fac Upp Upp War Pro Res Tes Res Qua Sec Acc Com Ac0 Slots Evolved 18 | . . . 2 . . . 2 . 2 . . . . 2 . . . . 2 . . . . 2 . . . . 2 . 2 . . 2 . . Power 2 | . . . . . . . . . . . . . . . . . . . 1 . . . . . . . . . . . . . . 1 . . Propulsion 5 | . . . . . . . 1 . 1 . . . . . . . . . . . . . . 2 . . . . . . . . . 1 . . Utility 9 | . . . 1 . . . . . 1 . . . . 2 . . . . 1 . . . . . . . . . 2 . 2 . . . . . Weapon 2 | . . . 1 . . . 1 . . . . . . . . . . . . . . . . . . . . . . . . . . . . . Parts Attached 940 | 6 33 17 25 5 20 9 35 18 34 18 10 16 25 5 22 9 10 3 13 3 7 9 7 74 23 8 30 15 42 54 18 62 3 39 133 80 Power 72 | 1 1 2 . 1 1 1 4 3 2 . . 1 1 . 2 2 . . 3 . 1 . . 8 4 1 1 . . 2 4 3 . 1 18 4 Engine 16 | 1 1 2 . 1 1 1 4 2 . . . . . . . . . . 1 . . . . 1 1 . . . . . . . . . . . Core 13 | . . . . . . . . 1 2 . . . 1 . 2 . . . 2 . . . . 2 2 1 . . . . . . . . . . Reactor 43 | . . . . . . . . . . . . 1 . . . 2 . . . . 1 . . 5 1 . 1 . . 2 4 3 . 1 18 4 Propulsion 198 | 2 3 3 10 1 5 . 7 7 5 . 1 2 8 . 10 2 3 1 . . 1 2 . 18 9 1 9 5 11 4 2 18 . 4 27 17 Treads 110 | 2 3 3 8 1 3 . 6 7 4 . 1 . 2 . 7 2 3 1 . . 1 1 . 8 1 . 6 5 11 4 2 5 . 4 9 . Leg 77 | . . . . . . . . . . . . 1 6 . 3 . . . . . . . . 7 8 1 3 . . . . 13 . . 18 17 Wheel 10 | . . . 2 . 2 . 1 . 1 . . 1 . . . . . . . . . . . 3 . . . . . . . . . . . . Hover 1 | . . . . . . . . . . . . . . . . . . . . . . 1 . . . . . . . . . . . . . . Flight . | . . . . . . . . . . . . . . . . . . . . . . . . . . . . . . . . . . . . . Utility 349 | 2 15 2 4 . . . 4 4 19 10 5 6 9 5 6 2 4 2 7 3 4 6 7 28 10 5 8 5 16 16 8 28 1 17 51 30 Device 188 | 2 2 . . . . . . . 13 9 5 2 9 3 1 . 2 1 1 2 1 . 1 16 8 4 2 3 7 11 7 15 . 8 36 17 Storage 28 | . 3 . 1 . . . . . . . . 1 . . . . . . 1 . . 1 3 1 . . 1 . 2 3 . 3 1 2 5 . Processor 17 | . 1 . . . . . . . . . . . . . . . . . . . . 1 1 4 1 . 1 1 2 . 1 1 . . 1 2 Hackware 15 | . . . . . . . 2 1 3 . . . . . 2 . . . . . . . . 3 . . . . 1 1 . 1 . 1 . . Protection 99 | . 9 2 3 . . . 2 3 3 1 . 3 . 2 3 2 2 1 5 1 3 4 2 4 1 1 4 1 4 1 . 6 . 6 9 11 Artifact 2 | . . . . . . . . . . . . . . . . . . . . . . . . . . . . . . . . 2 . . . . Weapon 321 | 1 14 10 11 3 14 8 20 4 8 8 4 7 7 . 4 3 3 . 3 . 1 1 . 20 . 1 12 5 15 32 4 13 2 17 37 29 Energy Gun 34 | . . . . . . . . . . . . . . . . . . . . . . . . 3 . . 4 2 6 9 2 4 1 2 . 1 Energy Cannon 40 | . 2 2 . . . . . . . . . 1 . . . . . . . . . . . . . . . . . 2 . 2 . 2 5 24 Ballistic Gun 178 | 1 7 6 10 2 10 8 19 4 7 6 4 1 7 . 4 3 3 . 3 . 1 1 . 15 . 1 6 2 5 12 2 5 1 6 16 . Ballistic Cannon 17 | . . . . . 2 . . . 1 2 . 1 . . . . . . . . . . . 2 . . . . . . . . . . 5 4 Launcher 8 | . . 2 1 1 2 . 1 . . . . . . . . . . . . . . . . . . . . . . . . . . . 1 . Special Weapon 14 | . 5 . . . . . . . . . . . . . . . . . . . . . . . . . 2 . . 2 . . . 4 1 . Impact Weapon 4 | . . . . . . . . . . . . . . . . . . . . . . . . . . . . . . . . 1 . 2 1 . Slashing Weapon 11 | . . . . . . . . . . . . 2 . . . . . . . . . . . . . . . 1 2 . . 1 . 1 4 . Piercing Weapon 11 | . . . . . . . . . . . . 2 . . . . . . . . . . . . . . . . 2 7 . . . . . . Special Melee Weapon 4 | . . . . . . . . . . . . . . . . . . . . . . . . . . . . . . . . . . . 4 . Unidentified Prototypes 67 | . . . . . . . 1 . 1 . . 3 . . 2 3 . . . . . 4 . 1 . . 8 . 4 6 1 9 . 1 17 6 Corrupted Parts 9 | . . . . . . . . . . . . . . . . 1 2 . . . . . . . . . 2 4 . . . . . . . . System Corruption 29 | . . . . . . . . . . . . . . . . 1 10 . . . . . . . . . 8 10 . . . . . . . . Parts Lost 77 | . . . . . 2 . . 1 1 . . 7 1 . 4 . . 1 4 . 1 . 2 27 3 2 . . . 1 2 1 . 2 5 10 Power 16 | . . . . . 1 . . 1 1 . . 1 1 . 1 . . . 1 . . . . 5 1 . . . . . . . . . 2 1 Propulsion 11 | . . . . . . . . . . . . 3 . . . . . . . . . . . 4 1 . . . . . . . . 1 1 1 Utility 27 | . . . . . . . . . . . . 2 . . 1 . . 1 . . 1 . 2 7 1 1 . . . 1 2 1 . 1 . 6 Weapon 23 | . . . . . 1 . . . . . . 1 . . 2 . . . 3 . . . . 11 . 1 . . . . . . . . 2 2 Highest Loss Streak 9 | . . . . . 2 . . 1 1 . . 4 1 . 2 . . 1 4 . 1 . 1 9 2 2 . . . 1 2 1 . 1 2 3 Average Slot Usage (%) 88 | . 100 100 99 100 98 99 94 95 94 91 91 72 88 100 98 91 85 85 86 88 87 87 87 83 99 99 90 93 89 83 84 81 72 72 78 79 Engine 2 | . 14 14 11 11 10 11 9 6 . . . . . . . . . . 8 5 3 . . . . . . . . . . . . . . . Core 1 | . . . . . . . . 2 6 7 7 2 1 6 4 . . . 1 5 5 5 5 4 4 5 2 . . . . . . . . . Reactor 3 | . . . . . . . . . . . . 4 2 . . 1 6 6 . . 1 5 5 4 5 5 4 5 4 7 8 7 4 6 9 4 Treads 14 | . 28 28 18 21 18 22 22 20 19 15 15 4 9 . 13 22 13 13 11 11 11 10 11 6 5 5 5 31 22 14 12 11 13 12 8 . Leg 5 | . . . . . . . . . . . . 4 13 26 12 . . . . . . . . 5 24 26 25 . . . . 2 . . 12 27 Wheel 1 | . . . 3 . 3 . 4 6 4 7 7 2 . . . . . . . . . . . 5 . . . . . . . . . . . . Device 7 | . . . . . . . . . 5 16 15 9 6 16 5 . 2 5 5 11 11 6 4 6 5 11 10 4 4 8 15 11 13 10 13 13 Storage 8 | . 13 14 11 11 11 11 9 9 7 7 7 9 7 6 6 6 6 6 8 5 5 5 8 6 8 5 5 10 6 4 8 10 12 9 6 4 Processor 5 | . . . . . . . . . . . . . . . . . . . . . . 3 8 4 12 10 8 10 17 19 16 11 8 8 8 11 Hackware 3 | . . . . . . . 4 4 12 . . . . . 11 13 13 8 5 5 5 5 5 12 5 3 . . 2 4 . . . 3 . . Protection 10 | . 13 14 22 22 22 22 9 9 3 5 7 9 15 16 15 19 17 17 18 16 16 16 10 3 4 5 10 9 8 3 4 5 4 9 8 6 Ballistic Gun 18 | . 27 15 32 32 31 32 36 35 29 29 29 6 30 26 26 25 26 26 22 23 23 23 23 16 21 20 8 15 12 13 16 8 2 3 2 . Naked Turns . | . . . . . . . . . . . . . . . . . . . . . . . . . . . . . . . . . . . . . Heaviest Build 235 | 15 34 37 63 60 115 59 74 74 119 119 68 144 93 94 87 94 97 96 100 95 108 103 107 113 94 99 124 116 119 170 177 182 179 201 235 215 Greatest Support 283 | 40 40 40 40 40 40 40 60 60 80 28 28 28 78 78 80 160 160 160 160 160 160 150 150 230 110 105 163 163 180 200 215 270 270 283 273 216 Greatest Overweight (x) 31 | . . . 3 3 2 1 6 6 4 4 2 5 3 1 1 1 31 . . . . 1 . 3 1 . 1 . . . . 2 . . 2 1 Average Overweight (x) . | . . . . 1 1 1 2 3 1 2 2 2 1 1 . . 10 . . . . . . . . . . . . . . . . . . . Largest Inventory Capacity 25 | 8 15 15 20 20 20 20 20 20 20 20 20 20 20 20 20 20 20 20 20 20 20 20 20 20 20 20 20 20 20 25 25 25 25 25 25 25 Average Capacity 20 | 8 13 15 16 20 20 20 20 20 20 20 20 20 20 20 20 20 20 20 20 20 20 20 20 20 20 20 20 20 20 24 25 25 25 25 25 25 Most Carried 25 | 7 15 15 20 20 20 20 20 20 20 20 20 20 20 20 20 20 20 20 20 20 20 20 20 20 20 20 20 20 20 25 25 25 25 25 25 25 Average Carried 20 | 5 13 14 15 19 19 19 19 19 19 19 19 19 19 19 18 17 19 19 18 19 19 19 19 17 19 18 19 19 19 24 24 24 24 24 23 24 Final Capacity 25 | 8 15 15 20 20 20 20 20 20 20 20 20 20 20 20 20 20 20 20 20 20 20 20 20 20 20 20 20 20 20 25 25 25 25 25 25 25 Final Carried 25 | 7 15 15 20 20 20 20 20 20 20 20 20 20 20 20 19 20 20 19 18 20 19 20 20 20 20 20 19 20 20 25 25 25 24 24 25 25 Class Distribution -------------------- 29% | Scavenger-Tank 17% | Generator-Mutant 17% | Scavenger-Gunner 10% | Mutant 7% | Tank 6% | Scavenger-Mutant 3% | Hacker-Gunner 3% | Hacker-Tank Dominant Class ---------------- Mutant | -10/Materials Mutant | -10/Mines Scavenger-Tank | -9/Materials Scavenger-Tank | -9/Mines Scavenger-Tank | -9/Exiles Scavenger-Tank | -8/Mines Tank | -8/Materials Scavenger-Tank | -8/Storage Hacker-Gunner | -7/Factory Tank | -7/Lower Caves Tank | -7/Lower Caves Scavenger-Mutant | -7/Data Miner Scavenger-Tank | -6/Proximity Caves Scavenger-Tank | -6/Factory Hacker-Tank | -6/Extension Hacker-Tank | -6/Cetus Scavenger-Tank | -6/Archives Scavenger-Tank | -6/Hub_04(d) Scavenger-Tank | -5/Factory Scavenger-Tank | -5/Upper Caves Scavenger-Tank | -5/Upper Caves Scavenger-Tank | -5/Zhirov Scavenger-Gunner | -4/Proximity Caves Wizard-Tank | -4/Factory Scavenger-Gunner | -4/Upper Caves Scavenger-Gunner | -4/Upper Caves Scavenger-Mutant | -4/Warlord Scavenger-Gunner | -3/Proximity Caves Scavenger-Gunner | -3/Research Scavenger-Gunner | -3/Testing Scavenger-Gunner | -2/Research Scavenger-Mutant | -2/Quarantine Scavenger-Mutant | -2/Section 7 Generator-Mutant | -1/Access Generator-Mutant | -1/Command Generator-Mutant | -1/Access_0 Resources | -11 -10 -10 -9 -9 -9 -8 -8 -8 -7 -7 -7 -7 -6 -6 -6 -6 -6 -6 -5 -5 -5 -5 -4 -4 -4 -4 -4 -3 -3 -3 -2 -2 -2 -1 -1 -1 ----------- Run | Scr Mat Min Mat Min Exi Min Mat Sto Fac Low Low Dat Pro Fac Ext Cet Arc Hub Fac Upp Upp Zhi Pro Fac Upp Upp War Pro Res Tes Res Qua Sec Acc Com Ac0 Matter Collected 27948 | 268 325 784 542 123 322 161 845 1058 1366 493 402 135 638 417 823 253 334 208 528 197 457 200 988 3341 930 350 366 386 1128 2337 1079 1336 30 1149 2988 661 Remotely 3739 | . . . . . . . . . . . . . . . . . . . 200 . . . . 1248 . . . . . . . 69 . 864 1358 . Salvage Created 34969 | 110 325 170 986 246 49 162 1188 1691 1828 486 210 422 955 261 360 170 334 676 833 316 986 . 1532 4025 916 313 250 381 1202 3723 1423 2276 192 2221 2002 1749 Parts 1490 | 8 29 12 43 17 . 20 53 85 97 24 7 16 19 13 16 10 22 39 43 20 35 . 53 157 38 13 15 21 61 160 47 97 9 65 51 75 Haulers Intercepted 22 | . 2 . 2 . . . 4 5 1 . . . . . . . . . . . . . . 1 . . . . 2 3 1 . . 1 . . Recyclers Shooed 18 | . . . 3 2 . 1 . 2 4 . . . . 1 . . . . 2 . . . . 1 . . . . 2 . . . . . . . Parts Field Recycled . | . . . . . . . . . . . . . . . . . . . . . . . . . . . . . . . . . . . . . Retrieved Matter . | . . . . . . . . . . . . . . . . . . . . . . . . . . . . . . . . . . . . . Parts Self-Destructed 322 | . . . . . . . . . . 23 10 . 15 . . . . . . 19 27 . 53 . 39 15 100 21 . . . . . . . . Prevented 2 | . . . . . . . . . . . . . . . . . . . . . . . . . . . 2 . . . . . . . . . Kills | -11 -10 -10 -9 -9 -9 -8 -8 -8 -7 -7 -7 -7 -6 -6 -6 -6 -6 -6 -5 -5 -5 -5 -4 -4 -4 -4 -4 -3 -3 -3 -2 -2 -2 -1 -1 -1 ------- Run | Scr Mat Min Mat Min Exi Min Mat Sto Fac Low Low Dat Pro Fac Ext Cet Arc Hub Fac Upp Upp Zhi Pro Fac Upp Upp War Pro Res Tes Res Qua Sec Acc Com Ac0 Combat Hostiles Destroyed 541 | . 9 13 17 6 5 11 13 23 27 11 6 4 11 8 7 2 3 12 14 8 15 . 25 44 16 7 15 9 17 45 15 27 5 36 24 31 Melee 7 | . . . . . . . . . . . . 4 . . . . . . . . . . . . . . . . . . . 1 . 2 . . Guns 408 | . 9 6 12 3 1 11 11 23 25 11 6 . 11 8 7 2 3 10 12 8 15 . 25 35 16 6 . 5 17 37 15 21 4 15 18 . Cannons 34 | . . 2 . . 1 . . . 1 . . . . . . . . . . . . . . 9 . . 1 . . 1 . . . 4 3 12 AOE 58 | . . 5 5 3 3 . 2 . 1 . . . . . . . . 2 2 . . . . . . . 14 4 . 4 . . 1 11 1 . Classes Destroyed 27 | 2 4 2 2 . . . 2 1 2 . 1 . . . 1 . . . . . 1 . 1 1 . . 1 . . 3 1 1 . . 1 . Worker 26 | . . 1 3 . . . 1 2 3 . . . . 1 . . . . . . . . . 6 . . . . 1 3 2 . . 1 2 . Builder 13 | . . . 1 . . . . . 2 . . . . . . . . 1 1 . . . . 5 . . . . . 2 . . . 1 . . Tunneler 4 | 1 1 . . . . . . . 1 . . . . . . . . . . . . . . 1 . . . . . . . . . . . . Hauler 22 | . 2 . 2 . . . 4 5 1 . . . . . . . . . . . . . . 1 . . . . 2 3 1 . . 1 . . Recycler 23 | 1 . . 5 1 . . 2 2 5 . . . . . . . . . . . . . . 6 . . . . . . . . . . 1 . Minesweeper 2 | . . . . . . . . . . . 1 . . . . . . . . . . . . . 1 . . . . . . . . . . . Mechanic 1 | . . . . . . . . . . . . . . . . . . . . . . . . . . . . . . 1 . . . . . . Operator 7 | . . . . . . . 1 1 . . . . . . . . 3 . . . . . . . . . . . . . 1 . . . 1 . Drone 1 | . . . . . . . . . . . . . . . . . . . . . . . . 1 . . . . . . . . . . . . Watcher 19 | . 1 . 3 . . . 3 1 1 . . . . . . 1 . 1 . . . . . 3 . . . . . 2 . . . 2 1 . Swarmer 115 | . 6 3 10 6 . 11 . . 2 . 4 . . 3 2 2 . 3 5 5 4 . 8 4 6 3 6 . 6 2 . . 4 5 5 . Grunt 173 | . 3 2 5 . . . 8 15 8 9 1 . 10 2 1 . . 3 4 2 10 . 10 15 6 3 2 4 7 15 8 10 . 8 2 . Brawler 14 | . . . . . . . 1 . 1 1 . . 1 . 1 . . . . . . . 3 1 2 . . . . 1 . . . 2 . . Duelist 7 | . . . . . . . . . 1 1 . . . . . . . . . . . . . . 1 . 1 . . 1 . . . 1 1 . Protector 4 | . . . . . . . . . . . . . . . . . . . . . . . 1 . . . 2 . . . . . . 1 . . Researcher 1 | . . . . . . . . . . . . . . . . . . . . . . . . . . . . . . 1 . . . . . . Sentry 50 | . . . 2 . . . 4 7 4 . 1 . . . 1 . 3 2 3 1 . . 1 7 1 . . 1 . 7 1 . 1 3 . . Demolisher 1 | . . . . . . . . . . . . . . . . . . . . . . . . . . . . . . . 1 . . . . . Specialist 3 | . . . . . . . . . . . . . . . . . . . . . . . . . . . . . . 3 . . . . . . Hunter 43 | . . . . . . . . 1 5 . . . . 1 1 . . 2 . . . . . 10 . . 1 2 . 4 2 4 . 6 4 . Programmer 60 | . . . . . . . . . 6 . . . . 2 . . . 1 2 . . . 1 7 . . 2 2 . 12 1 8 . 8 8 . Behemoth 5 | . . . . . . . . . . . . . . . 1 . . 1 . . . . 1 . . . . . . . . . . 2 . . Quarantine Guard 4 | . . . . . . . . . . . . . . . . . . . . . . . . . . . . . . . . 4 . . . . M Guard 2 | . . . . . . . . . . . . . . . . . . . . . . . . . . . . . . . . . . . 2 . Enhanced Grunt 22 | . . . . . . . . . . . . 4 . . . 1 . . . . . . . . . . . . . . . . . . . 17 Enhanced Sentry 2 | . . . . . . . . . . . . . . . . . . . . . . . . . . . . . . . . . . . . 2 Enhanced Hunter 7 | . . . . . . . . . . . . . . . . . . . . . . . . . . . . . . . . . . . . 7 Striker 7 | . . . . . . . . . . . . . . . . . . . . . . . . . . . 1 . 4 . 2 . . . . . Executioner 1 | . . . . . . . . . . . . . . . . . . . . . . . . . . . . . . . . . . . 1 . Fortress 1 | . . . . . . . . . . . . . . . . . . . . . . . . . . . . . . . . 1 . . . . Packrat 3 | . . . . . . . . . . . . . . . . . . . . . 3 . . . . . . . . . . . . . . . Master Thief 2 | . . . . . . . . . . . . . . . . . . . . . 1 . . . . 1 . . . . . . . . . . Assembled 14 | . . 8 . . 6 . . . . . . . . . . . . . . . . . . . . . . . . . . . . . . . Thug 1 | . . . 1 . . . . . . . . . . . . . . . . . . . . . . . . . . . . . . . . . Wizard 1 | . . . . . . . . . . . . . . . . . . . . . . . . . . . . . . . . . . . 1 . Best Kill Streak 11 | 2 3 3 9 3 4 4 4 6 10 4 4 1 3 5 2 2 3 4 8 5 4 . 8 10 6 3 8 5 6 9 4 6 4 11 6 5 Combat Bots Only 9 | . 3 3 6 3 4 4 3 5 7 4 3 1 3 4 2 2 2 3 7 5 4 . 8 8 6 3 8 5 6 9 4 6 4 9 5 5 Max Kills in Single Turn 4 | 1 2 2 2 3 3 2 2 1 3 2 1 1 2 2 1 1 1 4 2 2 2 . 2 2 2 2 4 2 2 3 2 2 2 3 2 1 Gunslinging 1 | . 1 . . . . 1 . . . 1 . . 1 . . . . 1 1 . . . 1 1 1 . . . 1 . 1 . . . 1 . Exploded 4 | . . 1 2 3 3 . 2 . 1 . . . . . . . . 2 1 . . . . . . . 4 2 . 1 . . 1 3 1 . Melee 1 | . . . . . . . . . . . . 1 . . . . . . . . . . . . . . . . . . . 1 . 1 . . Uniques/NPCs Destroyed 9 | . . . . . 1 . . . . . . 1 . . . . . . . . . . . . . . . . . . . . . . 2 5 8R-AWN (-9/Exiles) Data Miner (-7/Data Miner) MAIN.C Shell (-1/Command) MAIN.C (-1/Command) A8 (-1/Access_0) A6 (-1/Access_0) A5 (-1/Access_0) A4 (-1/Access_0) Architect (-1/Access_0) Combat | -11 -10 -10 -9 -9 -9 -8 -8 -8 -7 -7 -7 -7 -6 -6 -6 -6 -6 -6 -5 -5 -5 -5 -4 -4 -4 -4 -4 -3 -3 -3 -2 -2 -2 -1 -1 -1 -------- Run | Scr Mat Min Mat Min Exi Min Mat Sto Fac Low Low Dat Pro Fac Ext Cet Arc Hub Fac Upp Upp Zhi Pro Fac Upp Upp War Pro Res Tes Res Qua Sec Acc Com Ac0 Damage Taken 47190 | . 394 438 543 99 538 242 596 582 1042 345 303 955 889 618 1234 146 194 1756 966 291 700 . 1747 6542 832 370 347 669 881 1940 1575 3328 461 3309 4770 7548 Core 3103 | . 37 41 57 6 84 15 72 35 120 46 48 150 135 56 166 . . 134 54 16 103 . 39 323 87 28 35 23 49 56 92 178 14 146 253 405 Absorbed by Shields 17229 | . . . . . . . . . 45 131 117 83 . . 224 28 . . . . . . . . . . . . 362 1542 1263 1607 166 1200 3593 6868 Reduced by Siege Mode 1166 | . . . . . . . . . . . . . . . . . 7 30 38 16 59 . 77 294 . . . . . 95 134 233 . 98 85 . Core Remaining (%) 66 | 100 . 68 . . . 59 . 80 . . . . 28 . . . . 58 . . . . 78 . . . . 49 . 91 . . 67 . . 57 Volleys Fired 1777 | 3 53 33 69 15 19 17 55 88 81 20 16 . 34 20 29 9 20 32 26 11 29 . 45 147 29 11 16 21 39 80 45 72 5 78 73 437 Largest 4 | 2 2 2 3 3 3 3 4 4 4 4 4 . 4 4 4 4 4 4 4 4 4 . 4 4 4 4 2 4 4 4 4 4 2 2 4 1 Hottest 301 | 40 100 93 73 60 63 60 94 100 103 103 103 . 106 106 106 120 120 126 130 130 130 . 130 204 140 140 73 111 211 301 133 256 120 130 270 130 Shots Fired 4836 | 6 97 50 201 43 46 51 217 262 325 80 64 . 136 80 114 34 60 119 104 44 116 . 180 537 115 44 18 55 155 308 180 245 10 131 172 437 Gun 4190 | 6 88 26 196 42 30 51 216 262 324 80 64 . 136 80 114 34 60 119 104 44 116 . 180 445 115 44 14 49 155 303 180 242 10 109 152 . Cannon 568 | . . 9 . . 7 . . . 1 . . . . . . . . . . . . . . 92 . . . . . 1 . 3 . 5 13 437 Launcher 35 | . . 15 5 1 9 . 1 . . . . . . . . . . . . . . . . . . . . . . . . . . . 4 . Special 43 | . 9 . . . . . . . . . . . . . . . . . . . . . . . . . 4 6 . 4 . . . 17 3 . Kinetic 4031 | 6 88 26 196 42 37 51 216 262 325 80 64 . 136 80 114 34 60 119 104 44 116 . 180 514 115 44 9 49 145 219 180 116 . 97 163 . Thermal 619 | . 9 9 . . . . . . . . . . . . . . . . . . . . . 23 . . . . 10 85 . 103 . 8 2 370 Explosive 65 | . . 15 5 1 9 . 1 . . . . . . . . . . . . . . . . . . . 4 6 . 4 . . . 17 3 . Electromagnetic 107 | . . . . . . . . . . . . . . . . . . . . . . . . . . . . . . . . 26 5 9 . 67 Entropic 14 | . . . . . . . . . . . . . . . . . . . . . . . . . . . 5 . . . . . 5 . 4 . Robot Hit Streak 77 | 3 12 9 11 6 22 23 16 19 9 11 5 . 11 6 12 5 12 9 26 6 25 . 44 40 29 6 12 16 22 77 31 62 15 54 52 37 Robot Miss Streak 16 | 1 3 3 5 3 3 3 6 4 5 4 16 . 7 9 10 4 2 4 6 3 4 . 6 5 2 2 1 1 1 1 2 2 1 1 3 4 Penetration Max 2 | . . . . . . . . . 1 . . . . . . 1 1 1 1 . 1 . 1 2 2 1 1 . 2 1 1 1 . 1 2 . Secondary Targets 93 | . 1 . 1 2 . 3 1 . 1 7 1 . 2 . 1 1 1 1 5 3 4 . 9 10 8 1 . . 7 7 5 5 . 1 5 . Max Gunslinging Chain 2 | . 1 . 1 1 . 1 1 . 1 2 1 . 1 . 1 1 1 1 1 1 1 . 2 1 1 1 . . 1 1 1 1 . 1 1 . Capacitor 437 | . . . . . . . . . . . . . . . . . . . . . . . . . . . . . . . . . . . . 437 Autonomous 8 | . . . . . 7 . . . 1 . . . . . . . . . . . . . . . . . . . . . . . . . . . Shots Hit Robots 3352 | 4 55 33 126 25 33 27 117 136 176 60 33 36 96 62 88 16 47 43 58 23 75 . 119 338 85 24 16 41 109 261 122 188 10 113 197 360 Core Hits 1681 | 3 24 20 62 14 18 18 56 62 83 43 20 17 75 39 48 10 13 29 38 14 34 . 53 151 36 11 35 21 46 125 47 66 13 109 134 94 Critical Kills 108 | . 1 . 1 . . . . 3 1 . . . . . . 1 3 4 5 2 6 . 13 23 . 1 . 2 6 14 5 6 . 4 1 6 Critical Parts Destroyed 114 | . . . 1 . . . . 2 6 . . . . . . 2 1 2 3 2 9 . 9 20 3 . 3 . 7 22 10 5 1 2 4 . Critical Strikes 269 | . 1 . 2 . 1 . . 5 7 . . . . . . 3 5 6 8 4 15 . 32 51 3 1 4 3 15 41 17 22 1 7 9 6 Burn 18 | . . . . . . . . . . . . . . . . . . . . . . . . 1 . . . . 2 4 . 11 . . . . Meltdown 7 | . . . . . . . . . . . . . . . . . . . . . . . . . . . . . . . . . . 1 . 6 Destroy 234 | . 1 . 2 . 1 . . 5 7 . . . . . . 3 5 6 8 4 15 . 32 47 3 1 2 3 13 37 17 11 . 5 6 . Blast 5 | . . . . . . . . . . . . . . . . . . . . . . . . 3 . . . . . . . . . . 2 . Sever 3 | . . . . . . . . . . . . . . . . . . . . . . . . . . . 1 . . . . . . 1 1 . Detonate 2 | . . . . . . . . . . . . . . . . . . . . . . . . . . . 1 . . . . . 1 . . . Melee Attacks 198 | . . . . . . . . . . . . 71 . . . . . . . . . . . . . . . 9 5 9 . 6 1 24 73 . Kinetic 18 | . . . . . . . . . . . . . . . . . . . . . . . . . . . . . . . . 4 . 6 8 . Impact . | . . . . . . . . . . . . . . . . . . . . . . . . . . . . . . . . . . . . . Slashing 148 | . . . . . . . . . . . . 55 . . . . . . . . . . . . . . . 9 3 . . 2 1 18 60 . Piercing 27 | . . . . . . . . . . . . 16 . . . . . . . . . . . . . . . . 2 9 . . . . . . Sneak Attacks 6 | . . . . . . . . . . . . 1 . . . . . . . . . . . . . . . . . 1 . . . 1 3 . Combat Hostiles . | . . . . . . . . . . . . . . . . . . . . . . . . . . . . . . . . . . . . . Follow-up Attacks 18 | . . . . . . . . . . . . 18 . . . . . . . . . . . . . . . . . . . . . . . . Damage Inflicted 121619 | 59 869 724 1925 371 1220 236 1664 2520 3735 1033 456 1318 1663 965 1608 589 1185 1459 1788 562 1947 . 3130 9221 2303 617 3833 2242 2611 10015 4124 5732 508 8944 13732 26711 Guns 66802 | 59 741 296 1191 190 249 231 1523 2515 3232 1033 456 . 1663 887 1608 589 1166 1016 1562 562 1947 . 3130 7711 2303 617 255 798 2553 8178 4083 5293 376 3133 5656 . Cannons 29971 | . . 105 . . 608 . . . 82 . . . . . . . . . . . . . . 1484 . . . . . . . 86 . 559 336 26711 Explosions 14737 | . . 304 714 127 357 . 122 . 378 . . . . . . . . 433 214 . . . . . . . 3393 1123 . 991 . 228 132 3807 2414 . Melee 7763 | . . . . . . . . . . . . 1318 . . . . . . . . . . . . . . . . . 495 . 118 . 711 5121 . Ramming 759 | . 128 19 20 54 6 5 19 5 43 . . . . 78 . . 19 10 12 . . . . 26 . . . . 58 135 41 7 . . 74 . Kinetic 63889 | 59 741 296 1191 190 857 231 1523 2515 3314 1033 456 . 1663 887 1608 589 1166 1016 1562 562 1947 . 3130 8823 2303 617 102 798 2419 6069 4083 2856 . 3060 6223 . Thermal 31240 | . . 105 . . . . . . . . . . . . . . . . . . . . . 372 . . 131 . 134 2109 . 2354 132 683 . 25220 Explosive 11744 | . . 304 714 127 357 . 122 . 378 . . . . . . . . . . . . . . . . . 3262 1123 . 991 . . . 3744 622 . Electromagnetic 2947 | . . . . . . . . . . . . . . . . . . 433 214 . . . . . . . . . . . . 515 103 191 . 1491 Impact . | . . . . . . . . . . . . . . . . . . . . . . . . . . . . . . . . . . . . . Slashing 8080 | . . . . . . . . . . . . 1071 . . . . . . . . . . . . . . 185 321 . 216 . . . 1266 5021 . Piercing 742 | . . . . . . . . . . . . 247 . . . . . . . . . . . . . . . . . 495 . . . . . . Entropic 2218 | . . . . . . . . . . . . . . . . . . . . . . . . . . . 153 . . . . . 273 . 1792 . Highest Corruption 22 | . . . . . . . . . 2 . . . . 1 1 2 11 . 2 2 . . . 10 10 13 13 22 . 7 1 5 . 2 16 . Average Corruption 5 | . . . . . . . . . 1 . . . . 1 1 1 5 . 1 1 . . . 6 10 11 7 13 . 3 1 2 . 1 9 . Corruption Purged 59 | . . . . . . . . . 6 . . . . . . . 12 . . 2 . . . . . . . . . 11 1 8 . 2 17 . Effects 337 | . . . . . . . . . 5 . . . . 3 8 6 9 . 2 2 . . . 34 46 41 7 60 . 31 . 20 . 2 61 . Message Errors 80 | . . . . . . . . . 1 . . . . 2 3 1 2 . . 1 . . . 8 6 15 2 12 . 10 . 5 . . 12 . Matter Fused 68 | . . . . . . . . . . . . . . . . . 3 . . . . . . 4 16 7 2 8 . 7 . 3 . . 18 . Heat Flow Errors 44 | . . . . . . . . . . . . . . . . 1 3 . . . . . . 4 8 2 2 5 . 5 . 4 . . 10 . Energy Discharges 39 | . . . . . . . . . 2 . . . . 1 4 . . . . 1 . . . 1 2 4 1 14 . 3 . 2 . . 4 . Parts Rejected 2 | . . . . . . . . . . . . . . . . . . . . . . . . 1 . 1 . . . . . . . . . . Data Loss (minor) 49 | . . . . . . . . . 2 . . . . . 1 4 . . 2 . . . . 4 5 6 . 10 . 4 . 4 . 1 6 . Data Loss (major) 18 | . . . . . . . . . . . . . . . . . 1 . . . . . . 3 3 2 . 5 . . . . . . 4 . Misfires 8 | . . . . . . . . . . . . . . . . . . . . . . . . 1 2 1 . 2 . . . . . . 2 . Alerts 8 | . . . . . . . . . . . . . . . . . . . . . . . . . 1 2 . 3 . . . . . . 2 . Weapon Failures 21 | . . . . . . . . . . . . . . . . . . . . . . . . 8 3 1 . 1 . 2 . 2 . 1 3 . Overload Shots . | . . . . . . . . . . . . . . . . . . . . . . . . . . . . . . . . . . . . . Overflow Damage 2261 | . . 14 56 . 28 . . . . . . 13 . 8 . . 9 . . . . . . 14 . . 5 150 . 18 6 . 47 429 814 650 Projectiles 991 | . . . . . . . . . . . . . . . . . . . . . . . . 14 . . . 84 . . . . . 180 63 650 Explosions 380 | . . 14 55 . 28 . . . . . . . . . . . . . . . . . . . . . 5 66 . . . . 47 130 35 . Melee 890 | . . . 1 . . . . . . . . 13 . 8 . . 9 . . . . . . . . . . . . 18 6 . . 119 716 . Knockbacks 26 | . 3 1 . . 3 . . . . . . . . . . . . 1 . . . . . 16 . . . . 2 . . . . . . . Impact 7 | . 3 1 . . . . . . . . . . . . . . . 1 . . . . . . . . . . 2 . . . . . . . Kinetic 19 | . . . . . 3 . . . . . . . . . . . . . . . . . . 16 . . . . . . . . . . . . Secondary . | . . . . . . . . . . . . . . . . . . . . . . . . . . . . . . . . . . . . . Self-Inflicted Damage 337 | . . 125 . . . . 6 . 41 . . . . . . . . 99 . . . . . . . . . . . . . . 66 . . . Shots 8 | . . 4 . . . . 1 . 1 . . . . . . . . 1 . . . . . . . . . . . . . . 1 . . . Rammed 80 | . 29 6 4 10 1 1 3 2 4 . . . . . . . 1 2 1 . . . . 2 . . . . 3 7 2 . . . 2 . Targets Rammed 92 | . 29 6 4 10 1 1 3 2 6 . . . . 4 . . 1 2 1 . . . . 4 . . . . 4 9 2 1 . . 2 . Kicked 6 | . . . . . . . . . . . . . . 4 . . . . . . . . . 2 . . . . . . . . . . . . Crushed 6 | . . . . . . . . . 2 . . . . . . . . . . . . . . . . . . . 1 2 . 1 . . . . Highest Temperature 304 | . 60 99 222 126 100 133 216 237 221 198 174 . 246 195 150 189 304 171 10 24 81 . 57 182 257 143 185 202 163 265 . 158 . 11 244 280 Average Temperature 65 | . 19 28 70 42 33 54 50 79 68 119 56 . 57 76 51 70 125 41 5 10 41 . 22 45 63 32 94 85 29 44 . 41 . 11 100 92 Received Heat Transfer 5503 | . 111 99 162 . . . 342 288 112 183 56 154 325 72 234 . . 363 63 72 255 . 282 805 217 30 42 51 105 187 151 185 30 181 172 174 Effects 7 | . . . . . . . . . . . . . 3 . . . . . . . . . . . . . . . . . . . . . 3 1 Energy Bleed 1 | . . . . . . . . . . . . . . . . . . . . . . . . . . . . . . . . . . . . 1 Interference 6 | . . . . . . . . . . . . . 3 . . . . . . . . . . . . . . . . . . . . . 3 . Siege Activations 66 | . . . . . . . . . . . . . . . . . 1 4 4 1 5 . 5 13 . . . . . 7 5 7 1 6 7 . Total Turns 2446 | . . . . . . . . . . . . . . . . . 23 78 90 12 75 . 120 239 . . . . . 174 94 1253 6 101 181 . Longest Duration 1104 | . . . . . . . . . . . . . . . . . 23 53 63 12 24 . 44 76 . . . . . 59 27 1104 6 34 67 . Robots Corrupted 17 | . . . . . . . . . . . . . . . . . . . . . . . . . . . . . . . . 4 . 1 . 12 Combat Hostiles 17 | . . . . . . . . . . . . . . . . . . . . . . . . . . . . . . . . 4 . 1 . 12 Parts Fried 44 | . . . 1 . . . . . . . . . . . 2 . . . . . . . . . . . . . . . . 10 . 3 1 27 Impact Corruptions 9 | . . . 1 . . . . . . . . . . 3 . . 1 . . . . . . . . . . . . 1 2 . . . 1 . Robots Melted 11 | . . . . . . . . . . . . . . . . . . . . . . . . . . . . . . 3 . . . 1 . 7 Combat Hostiles 11 | . . . . . . . . . . . . . . . . . . . . . . . . . . . . . . 3 . . . 1 . 7 Parts Melted 23 | . . . . . . . . . . . . . . . . . . . 1 . . . . 6 . 1 . . . 11 . 1 . . . 3 Heat Transferred 16731 | . . 222 . . . . . . . . . . . . . . . . . . . . . 933 . . 100 . 472 3459 . 3554 100 424 . 7467 Parts Sabotaged . | . . . . . . . . . . . . . . . . . . . . . . . . . . . . . . . . . . . . . Parts Stolen 4 | . . . . . . . . . . . . . . . . . . . . . 2 . . . . 2 . . . . . . . . . . Parts Stripped . | . . . . . . . . . . . . . . . . . . . . . . . . . . . . . . . . . . . . . Power Chain Reactions 4 | . . . . . . . . . . . . . . . . . . . . . . . . . . . . . . . . 3 . 1 . . Missiles Intercepted . | . . . . . . . . . . . . . . . . . . . . . . . . . . . . . . . . . . . . . Alert | -11 -10 -10 -9 -9 -9 -8 -8 -8 -7 -7 -7 -7 -6 -6 -6 -6 -6 -6 -5 -5 -5 -5 -4 -4 -4 -4 -4 -3 -3 -3 -2 -2 -2 -1 -1 -1 ------- Run | Scr Mat Min Mat Min Exi Min Mat Sto Fac Low Low Dat Pro Fac Ext Cet Arc Hub Fac Upp Upp Zhi Pro Fac Upp Upp War Pro Res Tes Res Qua Sec Acc Com Ac0 Peak Influence 1126 | 10 128 99 582 342 . 265 364 406 668 . . . . 311 374 775 419 374 750 . . . . 1069 . . . . 649 1016 772 715 449 1126 947 . Initial 480 | . 6 49 . 187 . . 103 44 137 . . . . 65 . 162 230 . 182 . . . . 100 . . . . . 318 480 434 278 268 467 . Average 297 | 9 26 41 179 121 . 182 174 242 314 . . . . 116 104 394 215 123 413 . . . . 474 . . . . 330 530 581 429 353 670 684 . Maximum Alert Level 4 | . . . 2 1 . 1 1 2 2 . . . . 1 1 3 2 1 3 . . . . 3 . . . . 2 3 3 3 2 4 3 . Low Security (%) 34 | 100 100 100 72 73 . 75 57 23 19 . . . . 89 77 5 37 86 5 . . . . 36 . . . . 36 5 . . . . . . Level 1 22 | . . . 17 26 . 24 42 75 62 . . . . 10 22 51 36 13 49 . . . . 15 . . . . 12 32 . 42 55 29 . . Level 2 18 | . . . 9 . . . . 1 18 . . . . . . 36 26 . 34 . . . . 11 . . . . 51 32 84 56 44 20 8 . Level 3 24 | . . . . . . . . . . . . . . . . 5 . . 10 . . . . 35 . . . . . 30 15 1 . 44 91 . Level 4 . | . . . . . . . . . . . . . . . . . . . . . . . . . . . . . . . . . . 4 . . Level 5 . | . . . . . . . . . . . . . . . . . . . . . . . . . . . . . . . . . . . . . High Security . | . . . . . . . . . . . . . . . . . . . . . . . . . . . . . . . . . . . . . Max Security . | . . . . . . . . . . . . . . . . . . . . . . . . . . . . . . . . . . . . . Squads Dispatched 102 | . 2 . 3 . . . 1 4 12 . . . . 7 . . . 5 5 . . . 1 9 . . . . 7 11 1 6 3 17 8 . Investigation 20 | . 2 . 2 . . . . 1 2 . . . . 1 . . . 2 . . . . . 1 . . . . 4 . 1 1 1 1 1 . Extermination 25 | . . . . . . . . . 4 . . . . 1 . . . 2 1 . . . . 3 . . . . . 4 . 2 . 5 3 . Reinforcement 32 | . . . . . . . 1 3 . . . . . 5 . . . 1 1 . . . . 5 . . . . 3 3 . 2 1 4 3 . Assault 8 | . . . 1 . . . . . . . . . . . . . . . . . . . 1 . . . . . . 2 . 1 1 1 1 . Garrison 17 | . . . . . . . . . 6 . . . . . . . . . 3 . . . . . . . . . . 2 . . . 6 . . Intercept . | . . . . . . . . . . . . . . . . . . . . . . . . . . . . . . . . . . . . . Construction Impeded 9 | . . . . . . . . . . . . . . 1 . . . 1 . . . . . 3 . . . . 1 . . 1 . 2 . . Haulers Reinforced 4 | . . . . . . . . . . . . . . . . . . . . . . . . 1 . . . . 1 2 . . . . . . Active Scanning Responses . | . . . . . . . . . . . . . . . . . . . . . . . . . . . . . . . . . . . . . Cargo Convoy Interrupts 1 | . . . . . . . . . . . . . . 1 . . . . . . . . . . . . . . . . . . . . . . Stealth | -11 -10 -10 -9 -9 -9 -8 -8 -8 -7 -7 -7 -7 -6 -6 -6 -6 -6 -6 -5 -5 -5 -5 -4 -4 -4 -4 -4 -3 -3 -3 -2 -2 -2 -1 -1 -1 --------- Run | Scr Mat Min Mat Min Exi Min Mat Sto Fac Low Low Dat Pro Fac Ext Cet Arc Hub Fac Upp Upp Zhi Pro Fac Upp Upp War Pro Res Tes Res Qua Sec Acc Com Ac0 Distress Signals 63 | . . 2 2 . . . 1 2 1 . . . . . 3 2 . 3 1 . . . . 8 . . 1 . 8 3 2 1 2 2 19 . Communications Jammed . | . . . . . . . . . . . . . . . . . . . . . . . . . . . . . . . . . . . . . Distress Signals . | . . . . . . . . . . . . . . . . . . . . . . . . . . . . . . . . . . . . . Times Spotted 916 | . 25 15 33 6 6 12 23 31 36 11 14 4 14 13 20 13 9 30 15 10 17 . 26 84 20 9 39 10 29 66 24 37 14 50 79 72 Peak Tracking Total 14 | . 3 3 6 3 7 4 5 6 10 4 4 2 4 4 4 5 2 14 4 5 4 . 9 10 7 4 13 4 5 6 5 5 7 8 10 6 Tactical Retreats 32 | . . . . . . 1 1 . 2 . 1 . 3 . . . . 2 1 . . . . 7 . . . 1 . 4 5 . 1 . 3 . Traps | -11 -10 -10 -9 -9 -9 -8 -8 -8 -7 -7 -7 -7 -6 -6 -6 -6 -6 -6 -5 -5 -5 -5 -4 -4 -4 -4 -4 -3 -3 -3 -2 -2 -2 -1 -1 -1 ------- Run | Scr Mat Min Mat Min Exi Min Mat Sto Fac Low Low Dat Pro Fac Ext Cet Arc Hub Fac Upp Upp Zhi Pro Fac Upp Upp War Pro Res Tes Res Qua Sec Acc Com Ac0 Traps Triggered 13 | . . . . . . . . 1 3 . . . . . . . . . . . . . . 1 . 2 . . 1 . . 2 . 1 2 . Indirectly . | . . . . . . . . . . . . . . . . . . . . . . . . . . . . . . . . . . . . . Trap Hack Attempts . | . . . . . . . . . . . . . . . . . . . . . . . . . . . . . . . . . . . . . Triggered . | . . . . . . . . . . . . . . . . . . . . . . . . . . . . . . . . . . . . . Disarmed . | . . . . . . . . . . . . . . . . . . . . . . . . . . . . . . . . . . . . . Reprogrammed . | . . . . . . . . . . . . . . . . . . . . . . . . . . . . . . . . . . . . . Reused 1 | . . . . . . . . . . . . . . . . . . . . . . . . . . 1 . . . . . . . . . . Traps Extracted . | . . . . . . . . . . . . . . . . . . . . . . . . . . . . . . . . . . . . . Installed 3 | . . . . . . . . . . . . . . . . . . . . . . . . . . 3 . . . . . . . . . . Triggered 11 | . . . . . . . . . . . 1 . . 1 . . . . . . . . . . . . 8 1 . . . . . . . . Machines | -11 -10 -10 -9 -9 -9 -8 -8 -8 -7 -7 -7 -7 -6 -6 -6 -6 -6 -6 -5 -5 -5 -5 -4 -4 -4 -4 -4 -3 -3 -3 -2 -2 -2 -1 -1 -1 ---------- Run | Scr Mat Min Mat Min Exi Min Mat Sto Fac Low Low Dat Pro Fac Ext Cet Arc Hub Fac Upp Upp Zhi Pro Fac Upp Upp War Pro Res Tes Res Qua Sec Acc Com Ac0 Machines Disabled 111 | . . . 3 . 4 . . 5 15 . . 1 . . . . 4 6 22 . . . . 13 1 . 1 . 3 2 1 13 1 3 5 8 Max in Single Turn 8 | . . . 2 . 2 . . 1 4 . . 1 . . . . 1 2 8 . . . . 2 1 . 1 . 1 1 1 2 1 1 1 1 Garrison Access 7 | . . . . . . . . . . . . . . . . . . 1 1 . . . . 1 . . . . 2 1 . 1 . . . . Network Hub 1 | . . . . . . . . . . . . . . . . . . 1 . . . . . . . . . . . . . . . . . . Machines Sabotaged . | . . . . . . . . . . . . . . . . . . . . . . . . . . . . . . . . . . . . . Garrisons Compromised 1 | . . . . . . . . . . . . . . 1 . . . . . . . . . . . . . . . . . . . . . . Overloaded Fab Kills . | . . . . . . . . . . . . . . . . . . . . . . . . . . . . . . . . . . . . . Hacking | -11 -10 -10 -9 -9 -9 -8 -8 -8 -7 -7 -7 -7 -6 -6 -6 -6 -6 -6 -5 -5 -5 -5 -4 -4 -4 -4 -4 -3 -3 -3 -2 -2 -2 -1 -1 -1 --------- Run | Scr Mat Min Mat Min Exi Min Mat Sto Fac Low Low Dat Pro Fac Ext Cet Arc Hub Fac Upp Upp Zhi Pro Fac Upp Upp War Pro Res Tes Res Qua Sec Acc Com Ac0 Machines Accessed 103 | . 8 . 3 . 1 . 4 5 10 1 . 3 . 4 4 1 . 3 3 2 1 4 . 7 1 . 4 . 4 9 1 9 1 5 5 . Terminals 63 | . 6 . 1 . . . 4 5 6 . . . . 4 4 1 . 2 1 . . . . 4 . . . . 1 7 . 7 . 5 5 . Fabricators 4 | . . . . . . . . . 1 . . . . . . . . . . . . . . 1 . . . . 1 . 1 . . . . . Repair Stations 4 | . . . . . . . . . 1 . . . . . . . . . 1 . . . . . . . . . . 1 . 1 . . . . Recycling Units 5 | . 2 . 2 . . . . . 1 . . . . . . . . . . . . . . . . . . . . . . . . . . . Scanalyzers 2 | . . . . . . . . . . . . . . . . . . . . . . . . 1 . . . . . . . . 1 . . . Garrison Access 8 | . . . . . . . . . 1 . . . . . . . . 1 1 . . . . 1 . . . . 2 1 . 1 . . . . Total Hacks 374 | . 23 . 4 . 1 . 11 16 29 1 . 24 . 4 25 1 . 13 7 2 1 17 . 47 1 . 6 . 10 47 3 50 4 14 13 . Successful 206 | . 11 . 3 . 1 . 3 11 13 1 . 24 . 3 13 1 . 6 5 2 1 17 . 30 1 . 6 . 4 17 . 19 2 6 6 . Failed 166 | . 12 . 1 . . . 8 5 16 . . . . 1 11 . . 7 2 . . . . 17 . . . . 6 29 3 31 2 8 7 . Catastrophic 30 | . . . . . . . 1 . 2 . . . . 1 1 . . 2 . . . . . 1 . . . . 2 10 1 5 . 1 3 . Database Lockouts 2 | . . . . . . . . . . . . . . . 1 . . . . . . . . . . . . . . 1 . . . . . . Manual 148 | . 19 . 4 . 1 . 7 3 7 . . . . 3 18 1 . 2 . . . . . 24 . . 1 . 3 15 . 34 . 3 3 . Terminals 262 | . 20 . 2 . . . 11 16 22 . . . . 4 25 1 . 12 2 . . . . 34 . . . . 5 40 . 41 . 14 13 . Fabricators 12 | . . . . . . . . . 2 . . . . . . . . . . . . . . 5 . . . . 2 . 3 . . . . . Repair Stations 16 | . . . . . . . . . 2 . . . . . . . . . 4 . . . . . . . . . . 4 . 6 . . . . Recycling Units 6 | . 3 . 2 . . . . . 1 . . . . . . . . . . . . . . . . . . . . . . . . . . . Scanalyzers 10 | . . . . . . . . . . . . . . . . . . . . . . . . 6 . . . . . . . . 4 . . . Garrison Access 15 | . . . . . . . . . 2 . . . . . . . . 1 1 . . . . 2 . . . . 3 3 . 3 . . . . Terminal Hacks 160 | . 9 . . . 1 . 2 11 9 1 . 24 . 3 11 1 . 5 1 2 1 17 . 20 1 . 6 . 1 12 . 11 . 6 5 . Record 17 | . . . . . . . . . . . . 6 . . . . . . . . . 5 . 1 . . 5 . . . . . . . . . Part Schematic 25 | . 3 . . . . . . 1 . . . 10 . . 2 . . . . . . 4 . 5 . . . . . . . . . . . . Robot Schematic 8 | . . . . . . . . 1 . . . 5 . . 2 . . . . . . . . . . . . . . . . . . . . . Robot Analysis 6 | . . . . . . . . 1 . . . . . . . . . . . . . 4 . . . . . . 1 . . . . . . . Prototype ID Bank 20 | . 3 . . . . . . . 1 . . 3 . . 1 . . 1 . . . 4 . 5 . . . . . 2 . . . . . . Open Door 12 | . . . . . . . . . . 1 . . . 1 2 1 . . . 2 1 . . . 1 . 1 . . . . . . 1 1 . Open DSF 2 | . . . . . . . . . . . . . . 2 . . . . . . . . . . . . . . . . . . . . . . Level Access Points 1 | . . . . . . . . . . . . . . . . . . 1 . . . . . . . . . . . . . . . . . . Branch Access Points 4 | . . . . . . . 1 . 1 . . . . . . . . . 1 . . . . 1 . . . . . . . . . . . . Machine Index 2 | . . . . . . . . . 1 . . . . . . . . . . . . . . 1 . . . . . . . . . . . . Terminal Index 5 | . . . . . . . . . 1 . . . . . 1 . . . . . . . . . . . . . . 1 . 1 . 1 . . Alert Level 19 | . . . . . . . . 3 2 . . . . . 1 . . 1 . . . . . 2 . . . . . 4 . 3 . 2 1 . Unreport Threat 12 | . . . . . . . 1 1 . . . . . . 1 . . 1 . . . . . 1 . . . . . 2 . 3 . 2 . . Locate Traps 9 | . 2 . . . . . . . 1 . . . . . . . . . . . . . . 2 . . . . . 2 . 1 . . 1 . Dispatch Records 2 | . . . . . . . . 1 . . . . . . . . . . . . . . . . . . . . . . . 1 . . . . Maintenance Status 1 | . . . . . . . . . . . . . . . . . . . . . . . . . . . . . . . . 1 . . . . Recall Reinforcements 1 | . . . . . . . . 1 . . . . . . . . . . . . . . . . . . . . . . . . . . . . Hauler Manifests 6 | . 1 . . . . . . 1 2 . . . . . 1 . . . . . . . . 1 . . . . . . . . . . . . Registered Components 1 | . . . . . . . . . . . . . . . . . . . . . . . . 1 . . . . . . . . . . . . Zone Layout 4 | . . . . . . . . 1 . . . . . . . . . 1 . . . . . . . . . . . 1 . 1 . . . . EX-Prototype ID Bank 1 | . . . . . 1 . . . . . . . . . . . . . . . . . . . . . . . . . . . . . . . Disengage Seal 2 | . . . . . . . . . . . . . . . . . . . . . . . . . . . . . . . . . . . 2 . Fabricator Hacks 3 | . . . . . . . . . 1 . . . . . . . . . . . . . . 1 . . . . 1 . . . . . . . Network Status 1 | . . . . . . . . . . . . . . . . . . . . . . . . 1 . . . . . . . . . . . . Load Schematic 1 | . . . . . . . . . . . . . . . . . . . . . . . . . . . . . 1 . . . . . . . Build 1 | . . . . . . . . . 1 . . . . . . . . . . . . . . . . . . . . . . . . . . . Repair Station Hacks 9 | . . . . . . . . . 2 . . . . . . . . . 3 . . . . . . . . . . 1 . 3 . . . . Scan Component 5 | . . . . . . . . . 1 . . . . . . . . . 1 . . . . . . . . . . 1 . 2 . . . . Repair 3 | . . . . . . . . . 1 . . . . . . . . . 1 . . . . . . . . . . . . 1 . . . . Refit 1 | . . . . . . . . . . . . . . . . . . . 1 . . . . . . . . . . . . . . . . . Recycling Unit Hacks . | . . . . . . . . . . . . . . . . . . . . . . . . . . . . . . . . . . . . . Scanalyzer 7 | . . . . . . . . . . . . . . . . . . . . . . . . 5 . . . . . . . . 2 . . . Insert Component 5 | . . . . . . . . . . . . . . . . . . . . . . . . 3 . . . . . . . . 2 . . . Analyze 2 | . . . . . . . . . . . . . . . . . . . . . . . . 2 . . . . . . . . . . . . Garrison Access Hacks 4 | . . . . . . . . . . . . . . . . . . 1 1 . . . . 1 . . . . . 1 . . . . . . Seal Access 4 | . . . . . . . . . . . . . . . . . . 1 1 . . . . 1 . . . . . 1 . . . . . . Unauthorized Hacks 23 | . 2 . 3 . . . 1 . 1 . . . . . 2 . . . . . . . . 3 . . . . 2 3 . 5 . . 1 . Terminals 14 | . 1 . 1 . . . 1 . . . . . . . 2 . . . . . . . . 1 . . . . . 3 . 4 . . 1 . Track 6 | . . . . . . . . . . . . . . . . . . . . . . . . 1 . . . . . 3 . 2 . . . . Botnet 5 | . 1 . . . . . 1 . . . . . . . 1 . . . . . . . . . . . . . . . . 1 . . 1 . Disrupt 1 | . . . 1 . . . . . . . . . . . . . . . . . . . . . . . . . . . . . . . . . Operators 2 | . . . . . . . . . . . . . . . 1 . . . . . . . . . . . . . . . . 1 . . . . Fabricators 3 | . . . . . . . . . 1 . . . . . . . . . . . . . . 2 . . . . . . . . . . . . Report 1 | . . . . . . . . . . . . . . . . . . . . . . . . 1 . . . . . . . . . . . . Haulers 2 | . . . . . . . . . 1 . . . . . . . . . . . . . . 1 . . . . . . . . . . . . Repair Stations . | . . . . . . . . . . . . . . . . . . . . . . . . . . . . . . . . . . . . . Recycling Units 3 | . 1 . 2 . . . . . . . . . . . . . . . . . . . . . . . . . . . . . . . . . Tunnel 3 | . 1 . 2 . . . . . . . . . . . . . . . . . . . . . . . . . . . . . . . . . Scanalyzers . | . . . . . . . . . . . . . . . . . . . . . . . . . . . . . . . . . . . . . Garrison Access 3 | . . . . . . . . . . . . . . . . . . . . . . . . . . . . . 2 . . 1 . . . . Jam 3 | . . . . . . . . . . . . . . . . . . . . . . . . . . . . . 2 . . 1 . . . . Data Cores Recovered . | . . . . . . . . . . . . . . . . . . . . . . . . . . . . . . . . . . . . . Used . | . . . . . . . . . . . . . . . . . . . . . . . . . . . . . . . . . . . . . Hacking Detections 65 | . 7 . 1 . . . 4 5 9 . . . . 2 2 . . 2 2 . . . . 4 . . . . 2 7 1 8 1 5 3 . Full Trace Events 8 | . 1 . . . . . . . 1 . . . . . . . . 2 . . . . . . . . . . 1 . 1 . 1 1 . . Feedback Events 1 | . . . . . . . . . . . . . . . . . . . . . . . . . . . . . . . 1 . . . . . Corruption 1 | . . . . . . . . . . . . . . . . . . . . . . . . . . . . . . . 1 . . . . . Feedback Blocked . | . . . . . . . . . . . . . . . . . . . . . . . . . . . . . . . . . . . . . Robot Schematics Acquired 8 | . . . . . . . . 1 . . . 5 . . 2 . . . . . . . . . . . . . . . . . . . . . Robots Built 2 | . . . . . . . . . 2 . . . . . . . . . . . . . . . . . . . . . . . . . . . Authchips . | . . . . . . . . . . . . . . . . . . . . . . . . . . . . . . . . . . . . . Time 134 | . . . . . . . . . 134 . . . . . . . . . . . . . . . . . . . . . . . . . . . Total Robot Build Rating 8 | . . . . . . . . . 8 . . . . . . . . . . . . . . . . . . . . . . . . . . . Part Schematics Acquired 26 | . 3 . . . . . . 1 . . . 10 . . 2 . . . . . . 4 . 6 . . . . . . . . . . . . Parts Built . | . . . . . . . . . . . . . . . . . . . . . . . . . . . . . . . . . . . . . Authchips . | . . . . . . . . . . . . . . . . . . . . . . . . . . . . . . . . . . . . . Time . | . . . . . . . . . . . . . . . . . . . . . . . . . . . . . . . . . . . . . Total Part Build Rating . | . . . . . . . . . . . . . . . . . . . . . . . . . . . . . . . . . . . . . Parts Repaired 2 | . . . . . . . . . . . . . . . . . . . 1 . . . . . . . . . . . . 1 . . . . Time 182 | . . . . . . . . . 60 . . . . . . . . . 54 . . . . . . . . . . . . 68 . . . . Parts Recycled . | . . . . . . . . . . . . . . . . . . . . . . . . . . . . . . . . . . . . . Recycled Matter . | . . . . . . . . . . . . . . . . . . . . . . . . . . . . . . . . . . . . . Retrieved Matter . | . . . . . . . . . . . . . . . . . . . . . . . . . . . . . . . . . . . . . Retrieved Components . | . . . . . . . . . . . . . . . . . . . . . . . . . . . . . . . . . . . . . Parts Scanalyzed 2 | . . . . . . . . . . . . . . . . . . . . . . . . 2 . . . . . . . . . . . . Part Schematics Acquired 1 | . . . . . . . . . . . . . . . . . . . . . . . . 1 . . . . . . . . . . . . Parts Damaged . | . . . . . . . . . . . . . . . . . . . . . . . . . . . . . . . . . . . . . Bothacking | -11 -10 -10 -9 -9 -9 -8 -8 -8 -7 -7 -7 -7 -6 -6 -6 -6 -6 -6 -5 -5 -5 -5 -4 -4 -4 -4 -4 -3 -3 -3 -2 -2 -2 -1 -1 -1 ------------ Run | Scr Mat Min Mat Min Exi Min Mat Sto Fac Low Low Dat Pro Fac Ext Cet Arc Hub Fac Upp Upp Zhi Pro Fac Upp Upp War Pro Res Tes Res Qua Sec Acc Com Ac0 Used RIF Installer . | . . . . . . . . . . . . . . . . . . . . . . . . . . . . . . . . . . . . . Robots Hacked 3 | . . . . . . . . . . . . . . . . . . . . . . . . . . . . . . . . . . . 3 . Non-combat . | . . . . . . . . . . . . . . . . . . . . . . . . . . . . . . . . . . . . . Combat . | . . . . . . . . . . . . . . . . . . . . . . . . . . . . . . . . . . . . . Robot Hacks Applied . | . . . . . . . . . . . . . . . . . . . . . . . . . . . . . . . . . . . . . Manual 3 | . . . . . . . . . . . . . . . . . . . . . . . . . . . . . . . . . . . 3 . Relay Couplers Released 13 | . . . . . . . . . 4 . . . . . . . . . 2 . . . . . . . . . 7 . . . . . . . Machine Destruction 2 | . . . . . . . . . . . . . . . . . . . 2 . . . . . . . . . . . . . . . . . Programmers 11 | . . . . . . . . . 4 . . . . . . . . . . . . . . . . . . . 7 . . . . . . . Robots Rewired 26 | . . . . . . . . . . . . . . . 19 . . . . . . . 2 . 2 . 3 . . . . . . . . . Allies Hacked 2 | . . . . . . . . . . . . . . . . 1 . . . . . . . . . . . . . . . . . . 1 . Hacks Repelled . | . . . . . . . . . . . . . . . . . . . . . . . . . . . . . . . . . . . . . Allies | -11 -10 -10 -9 -9 -9 -8 -8 -8 -7 -7 -7 -7 -6 -6 -6 -6 -6 -6 -5 -5 -5 -5 -4 -4 -4 -4 -4 -3 -3 -3 -2 -2 -2 -1 -1 -1 -------- Run | Scr Mat Min Mat Min Exi Min Mat Sto Fac Low Low Dat Pro Fac Ext Cet Arc Hub Fac Upp Upp Zhi Pro Fac Upp Upp War Pro Res Tes Res Qua Sec Acc Com Ac0 Total Allies 42 | . . 2 . 3 . . . . 2 . . . . . 21 5 . . . . . . 2 . 2 . 3 . . . . . . . 2 . Largest Group 13 | . . 2 1 3 3 . . . 2 . . . . . 13 13 2 . . . . . 1 1 2 2 3 . . . . . . . 2 . Highest-Rated Group 730 | . . 50 31 40 40 . . . 64 . . . . . 503 730 235 . . . . . 48 48 96 96 170 . . . . . . . 448 . Highest-Rated Ally 224 | . . 31 31 16 16 . . . 32 . . . . . 159 146 140 . . . . . 48 48 49 49 65 . . . . . . . 224 . Total Orders 16 | . . . . . 3 . . . . . . . . . 2 4 1 . . . . . . 1 . 1 1 . . . . . . 2 1 . STAY 6 | . . . . . 3 . . . . . . . . . . 2 . . . . . . . . . . 1 . . . . . . . . . ROAM 4 | . . . . . . . . . . . . . . . 1 1 1 . . . . . . . . 1 . . . . . . . . . . FOLLOW 2 | . . . . . . . . . . . . . . . 1 1 . . . . . . . . . . . . . . . . . . . . EXPLORE 4 | . . . . . . . . . . . . . . . . . . . . . . . . 1 . . . . . . . . . 2 1 . Ally Attacks 381 | . . 6 27 . 5 . . . 3 . . . . . 98 116 10 . . . . . 2 7 11 8 20 . . . . . . . 68 . Total Damage 16371 | . . 127 398 . 35 . . . 121 . . . . . 3102 2476 222 . . . . . 61 258 351 225 867 . . . . . . . 8128 . Kills 62 | . . 2 9 . . . . . . . . . . . 19 19 1 . . . . . . . 3 2 3 . . . . . . . 4 . Allies Corrupted 1 | . . . . . . . . . . . . . . . 1 . . . . . . . . . . . . . . . . . . . . . Allies Melted 2 | . . . . . . . . . . . . . . . . 2 . . . . . . . . . . . . . . . . . . . . Intel | -11 -10 -10 -9 -9 -9 -8 -8 -8 -7 -7 -7 -7 -6 -6 -6 -6 -6 -6 -5 -5 -5 -5 -4 -4 -4 -4 -4 -3 -3 -3 -2 -2 -2 -1 -1 -1 ------- Run | Scr Mat Min Mat Min Exi Min Mat Sto Fac Low Low Dat Pro Fac Ext Cet Arc Hub Fac Upp Upp Zhi Pro Fac Upp Upp War Pro Res Tes Res Qua Sec Acc Com Ac0 Robot Analysis Total 6 | . . . . . . . . 1 . . . . . . . . . . . . . 4 . . . . . . 1 . . . . . . . Derelict Logs Recovered 20 | . . 1 . 1 . . . . . 2 2 . 3 . . . . . . 1 3 . 3 . 2 2 . . . . . . . . . . Drone Launches 9 | . . . . . . . . . . . . . . . . . . . . . . . . 5 . . . . . . . . . 3 1 . Drone Recoveries 4 | . . . . . . . . . . . . . . . . . . . . . . . . 3 . . . . . . . . . 1 . . Exploration | -11 -10 -10 -9 -9 -9 -8 -8 -8 -7 -7 -7 -7 -6 -6 -6 -6 -6 -6 -5 -5 -5 -5 -4 -4 -4 -4 -4 -3 -3 -3 -2 -2 -2 -1 -1 -1 ------------- Run | Scr Mat Min Mat Min Exi Min Mat Sto Fac Low Low Dat Pro Fac Ext Cet Arc Hub Fac Upp Upp Zhi Pro Fac Upp Upp War Pro Res Tes Res Qua Sec Acc Com Ac0 Turns Passed 57816 | 116 3598 1660 1251 1481 1409 349 1198 1541 2480 1385 924 627 2746 804 1845 530 1275 662 601 800 1572 334 1677 1809 1307 1016 1006 1551 1911 2249 749 4025 270 1269 8182 1607 Spaces Moved 27216 | 58 917 749 381 590 634 118 443 694 1244 997 669 182 996 266 828 206 148 290 255 469 891 194 896 804 943 793 688 844 756 996 321 1315 148 541 5072 880 Core 51 | . . . . . . . . . . . . . . . . . 51 . . . . . . . . . . . . . . . . . . . Treads 14640 | 58 917 749 250 581 435 118 235 217 330 . . . . . 447 206 97 290 255 469 891 194 896 190 . . 42 844 756 996 321 1092 148 541 2075 . Legs 8376 | . . . . . . . . . . . . 89 996 266 381 . . . . . . . . 162 943 793 646 . . . . 223 . . 2997 880 Wheels 4149 | . . . 131 9 199 . 208 477 914 997 669 93 . . . . . . . . . . . 452 . . . . . . . . . . . . Hover . | . . . . . . . . . . . . . . . . . . . . . . . . . . . . . . . . . . . . . Flight . | . . . . . . . . . . . . . . . . . . . . . . . . . . . . . . . . . . . . . Fastest Speed 107 | 160 160 160 130 145 110 240 160 150 115 130 130 130 190 190 120 160 160 160 160 160 160 160 160 115 120 120 112 168 165 166 158 113 160 155 107 111 Average Speed 156 | 160 160 160 153 238 200 240 170 160 137 130 130 256 230 190 149 162 656 160 160 160 160 160 160 128 120 120 120 169 165 169 161 152 160 158 136 111 Slowest Speed 1600 | 160 160 160 160 240 320 240 240 240 160 160 130 470 330 190 190 242 1600 160 160 160 160 240 160 190 190 120 190 170 170 170 166 253 160 161 253 183 Overloaded Moves . | . . . . . . . . . . . . . . . . . . . . . . . . . . . . . . . . . . . . . Propulsion Burnouts . | . . . . . . . . . . . . . . . . . . . . . . . . . . . . . . . . . . . . . Robots Hopped 1 | . . . . . . . . . . . . . . . . . . . . . . . . . . . 1 . . . . . . . . . Cave-ins Triggered . | . . . . . . . . . . . . . . . . . . . . . . . . . . . . . . . . . . . . . Teleports 6 | . . . . . . . . . . . . . . . . . . . . . . . . 1 . . . . . . . 2 . 1 1 1 Exploration Rate (%) 60 | 5 97 99 30 91 60 19 29 77 26 96 78 81 93 8 83 72 71 36 7 72 97 60 96 23 97 89 81 89 28 91 20 83 14 20 84 48 Regions Visited 36 Branch Regions 26 Pre-discovered Areas 15 | . 1 1 2 1 . . . . . . . 1 1 . . . . . . . 1 3 1 . 1 1 1 . . . . . . . . . Known Exits Taken 11 | . . . . . . . 1 . 1 1 . . . 1 . . . 1 1 . . . 1 1 . . . 1 1 . 1 . . . . . Unknown Exits Taken 25 | 1 1 1 1 1 1 1 . 1 . . 1 1 1 . 1 1 1 . . 1 1 1 . . 1 1 1 . . 1 . 1 1 1 1 . Scrap Searched 32 | . . 1 . 1 . 1 . . . 2 5 . 4 . . . . . . 2 4 . 2 . 3 3 . 4 . . . . . . . . Spaces Dug 124 | . 6 42 . . . . . . . . . . . . . . . 3 . . . . 5 24 . 3 . 9 10 4 1 1 . 10 5 1 Terrain Destroyed 1256 | . 9 120 17 12 49 . 8 . 25 . . . . . . . 18 184 9 11 36 . 62 89 25 14 80 96 33 36 26 34 17 75 113 58 Melee 30 | . . . . . . . . . . . . . . . . . . . . . . . . . . . . 9 4 3 . . . 10 4 . Projectile 474 | . 9 . . . . . . . 3 . . . . . . . 18 23 9 11 36 . 62 87 24 14 2 31 28 4 25 26 1 1 2 58 AOE 736 | . . 120 17 12 49 . 8 . 22 . . . . . . . . 159 . . . . . . . . 78 56 . 29 . 8 16 57 105 . Terrain Rammed . | . . . . . . . . . . . . . . . . . . . . . . . . . . . . . . . . . . . . . Walls Destroyed . | . . . . . . . . . . . . . . . . . . . . . . . . . . . . . . . . . . . . . Machines Disabled . | . . . . . . . . . . . . . . . . . . . . . . . . . . . . . . . . . . . . . Actions | -11 -10 -10 -9 -9 -9 -8 -8 -8 -7 -7 -7 -7 -6 -6 -6 -6 -6 -6 -5 -5 -5 -5 -4 -4 -4 -4 -4 -3 -3 -3 -2 -2 -2 -1 -1 -1 --------- Run | Scr Mat Min Mat Min Exi Min Mat Sto Fac Low Low Dat Pro Fac Ext Cet Arc Hub Fac Upp Upp Zhi Pro Fac Upp Upp War Pro Res Tes Res Qua Sec Acc Com Ac0 Total 39762 | 75 2913 1166 939 630 749 160 807 1041 1917 1057 701 284 1401 528 1402 393 414 423 393 497 977 218 1045 1222 1044 833 853 902 1310 1338 441 3166 168 777 6081 1497 Wait 8311 | . 1837 331 416 . 47 . 217 200 502 6 . 30 327 227 385 141 223 95 85 7 40 . 87 114 16 1 60 6 422 145 33 1639 5 62 567 38 Move 27176 | 57 916 748 380 589 633 117 442 693 1243 996 668 181 995 265 827 205 147 289 254 468 890 193 895 803 942 792 685 843 755 995 320 1314 147 540 5070 879 Hop 1 | . . . . . . . . . . . . . . . . . . . . . . . . . . . 1 . . . . . . . . . Pick Up 386 | 5 23 12 18 4 11 5 17 15 20 4 3 6 7 3 12 9 4 1 7 4 5 4 2 40 11 5 15 2 9 12 6 14 2 9 37 23 Fast Attach 353 | 1 4 2 4 1 3 1 9 7 10 3 . 7 6 2 1 7 5 . 2 1 3 7 1 29 3 5 19 8 23 23 12 29 2 14 71 28 Attach 250 | 1 4 6 6 1 6 3 12 4 10 7 3 3 6 2 10 2 3 2 6 . 2 2 3 29 6 2 10 2 8 5 5 15 1 12 29 22 Detach 117 | . 2 2 2 1 3 . 4 1 6 6 . . . . . 1 1 . 1 1 2 2 1 7 1 4 4 . 6 6 1 8 . 7 28 9 Swap 349 | 4 25 9 15 3 11 5 14 7 14 8 7 6 13 1 11 . 2 1 5 2 2 1 3 17 14 1 1 5 11 26 1 20 3 14 34 33 Drop 639 | 4 20 17 25 6 15 11 34 24 25 7 4 8 12 4 15 19 8 1 6 3 4 9 2 32 13 9 32 6 28 28 16 49 2 17 96 28 Fire 1777 | 3 53 33 69 15 19 17 55 88 81 20 16 . 34 20 29 9 20 32 26 11 29 . 45 147 29 11 16 21 39 80 45 72 5 78 73 437 Melee 169 | . . . . . . . . . . . . 43 . . . . . . . . . . . . . . . 9 5 9 . 5 1 24 73 . Ram . | . . . . . . . . . . . . . . . . . . . . . . . . . . . . . . . . . . . . . Kick 6 | . . . . . . . . . . . . . . 4 . . . . . . . . . 2 . . . . . . . . . . . . Crush 86 | . 29 6 4 10 1 1 3 2 6 . . . . . . . 1 2 1 . . . . 2 . . . . 4 9 2 1 . . 2 . Escape Stasis 1 | . . . . . . . . . . . . . . . . . . . . . . . . . . . . . . . . . . . 1 . Rewire 138 | . . . . . . . . . . . . . 1 . 112 . . . . . . . 6 . 9 . 10 . . . . . . . . . Trap 3 | . . . . . . . . . . . . . . . . . . . . . . . . . . 3 . . . . . . . . . . Miscellaneous . | . . . . . . . . . . . . . . . . . . . . . . . . . . . . . . . . . . . . . Route ------- -11/Scrapyard -10/Materials (discovered 4 exits: *Mat x3 / [*Min]) -10/Mines (discovered 2 exits: *Mat x2) -9/Materials (discovered 2 exits: [*Min x2]) -9/Mines (discovered 3 exits: *Mat x2 / *Exi) -9/Exiles -8/Mines -8/Materials -8/Storage -7/Factory (discovered 4 exits: *Fac x2 / *Low x2) -7/Lower Caves -7/Lower Caves (discovered 2 exits: *Fac / *Dat) -7/Data Miner -6/Proximity Caves -6/Factory (discovered 2 exits: *Fac / *Ext) -6/Extension (discovered 2 exits: *Fac / *Cet) -6/Cetus (discovered 2 exits: *Fac / [*Arc]) -6/Archives (discovered 2 exits: *Hub x2) -6/Hub_04(d) (discovered 4 exits: *Fac x4) -5/Factory (discovered 2 exits: *Upp x2) -5/Upper Caves -5/Upper Caves (discovered 2 exits: *Fac / *Zhi) -5/Zhirov -4/Proximity Caves -4/Factory (discovered 4 exits: *Res / *Upp x2 / *Arm) -4/Upper Caves -4/Upper Caves (discovered 2 exits: *Res / *War) -4/Warlord -3/Proximity Caves -3/Research -3/Testing -2/Research -2/Quarantine (discovered 2 exits: *Acc / *Sec) -2/Section 7 -1/Access -1/Command (discovered 3 exits: [*Sur x2] / [*Ac0]) -1/Access_0 Near Former Tau Ceti IV History --------- Turn | Location | Event 15 | -11/Scrapyard | Discovered new exit (range 3) 117 | -11/Scrapyard | Entered Materials 310 | -10/Materials | Build established: Mutant 579 | -10/Materials | Discovered new exit (range 15) 1717 | -10/Materials | Discovered new exit (range 7) 3345 | -10/Materials | Discovered new exit (range 15) 3434 | -10/Materials | Discovered new exit (range 15) 3715 | -10/Materials | Entered Mines 3779 | -10/Mines | Assembled infested the area 3784 | -10/Mines | Assisted by a Guerilla fighting off Assembled 4118 | -10/Mines | A weapon hastily lodged in a ceiling crevice suddenly fell to the ground 4270 | -10/Mines | Discovered new exit (range 8) 4280 | -10/Mines | Received a Rocket Launcher from a helpful Derelict 4787 | -10/Mines | Learned location of Zion (-6) 4993 | -10/Mines | Discovered new exit (range 5) 5130 | -10/Mines | Joined a pair of Derelicts in attacking an 0b10 outpost 5375 | -10/Mines | Entered Materials 5375 | -9/Materials | Accompanied by 1 ally 5375 | -9/Materials | Evolved 2 slots: Utility x1, Weapon x1 5380 | -9/Materials | Led the pair of lost Derelicts to an unsafe place 5680 | -9/Materials | Build established: Scavenger-Tank 5848 | -9/Materials | Discovered new exit (range 9) 6575 | -9/Materials | First assault squad dispatched 6594 | -9/Materials | Discovered new exit (range 8) 6626 | -9/Materials | Entered Mines 6795 | -9/Mines | Build established: Tank 6856 | -9/Mines | Deemed a non-threat by the Exiles lab entrance 6856 | -9/Mines | Discovered new exit (range 5) 6973 | -9/Mines | Learned location of Storage (-8) 7137 | -9/Mines | Build established: Scavenger-Tank 7267 | -9/Mines | Assisted by bots powering up and referring to "LRC-V3" 7442 | -9/Mines | Found a hidden stash of uninstalled traps 7622 | -9/Mines | Discovered new exit (range 8) 7706 | -9/Mines | Discovered new exit (range 14) 8107 | -9/Mines | Entered Exiles 8107 | -9/Exiles | Accompanied by 3 allies 8167 | -9/Exiles | Met 8R-AWN 8206 | -9/Exiles | Met EX-HEX 8295 | -9/Exiles | Met EX-DEC 8338 | -9/Exiles | Met EX-BIN 8353 | -9/Exiles | Aligned with FarCom system 8354 | -9/Exiles | Given EX-Vault access code 8380 | -9/Exiles | Opened EX-Vault 8389 | -9/Exiles | Found AWS/Autocannon 8395 | -9/Exiles | Found Latent Energy Streamer 8423 | -9/Exiles | Warned to stay clear of 0b10 Research branches 8587 | -9/Exiles | Attacked by the Exiles 8638 | -9/Exiles | Destroyed 8R-AWN 8869 | -9/Exiles | Found 0b10 Alert Chip 9472 | -9/Exiles | Discovered new exit (range 14) 9516 | -9/Exiles | Stole three prototypes: AWS/Autocannon, 0b10 Alert Chip, Latent Energy Streamer 9516 | -9/Exiles | Entered Mines 9680 | -8/Mines | Discovered new exit (range 10) 9865 | -8/Mines | Entered Materials 9865 | -8/Materials | Evolved 2 slots: Propulsion x1, Weapon x1 10715 | -8/Materials | Build established: Tank 10930 | -8/Materials | Discovered new exit (range 12) 10932 | -8/Materials | Identified exit to Storage 11063 | -8/Materials | Entered Storage 12084 | -8/Storage | Build established: Scavenger-Tank 12577 | -8/Storage | Discovered new exit (range 5) 12604 | -8/Storage | Entered Factory 12604 | -7/Factory | Evolved 2 slots: Propulsion x1, Utility x1 13104 | -7/Factory | Discovered new exit (range 5) 13327 | -7/Factory | Destroyed 7 combat bots 13602 | -7/Factory | Garrison activated, responded to threat 13696 | -7/Factory | Fabricated Y-54 Guardian? 13801 | -7/Factory | Discovered new exit (range 4) 13855 | -7/Factory | Build established: Hacker-Gunner 13975 | -7/Factory | Identified exit to Lower Caves 14373 | -7/Factory | Discovered new exit (range 7) 15084 | -7/Factory | Entered Lower Caves 15167 | -7/Lower Caves | Build established: Tank 15292 | -7/Lower Caves | Identified exit to Lower Caves 15344 | -7/Lower Caves | Spotted B-75 Beast 15663 | -7/Lower Caves | Encountered a Warlord checkpoint 15684 | -7/Lower Caves | Learned Factory terminal intel 16469 | -7/Lower Caves | Entered another Lower Caves area 16543 | -7/Lower Caves | Discovered new exit (range 15) 16741 | -7/Lower Caves | Spotted B-75 Beast 16856 | -7/Lower Caves | Learned Factory security intel 16966 | -7/Lower Caves | Attracted the attention of an 0b10 checkpoint 17017 | -7/Lower Caves | Learned Factory garrison access intel 17369 | -7/Lower Caves | Discovered new exit (range 13) 17392 | -7/Lower Caves | Ambushed by wild Derelicts 17393 | -7/Lower Caves | Entered Data Miner 17393 | -7/Data Miner | Discovered new exit (range 6) 17418 | -7/Data Miner | Met Data Miner 17444 | -7/Data Miner | Learned location of Section 7 (-2) 17444 | -7/Data Miner | Acquired the access code to Warlord's prototype stash 17469 | -7/Data Miner | Received God Mode back door access code from Data Miner 17487 | -7/Data Miner | Destroyed Data Miner 17489 | -7/Data Miner | Data Conduit disabled 17597 | -7/Data Miner | Found Prototype Device 17597 | -7/Data Miner | Identified Exp. Thermal Shield 17616 | -7/Data Miner | Lost 3 parts (2n1u) 17647 | -7/Data Miner | Core integrity fell below 50% 17675 | -7/Data Miner | Lost 4 parts (1p1n1u1w) 17739 | -7/Data Miner | Found Prototype Hackware 17744 | -7/Data Miner | Found Prototype Hackware 17805 | -7/Data Miner | Found Exp. Thermal Shield 17940 | -7/Data Miner | Build established: Scavenger-Mutant 18020 | -7/Data Miner | Entered Proximity Caves 18302 | -6/Proximity Caves | Build established: Scavenger-Tank 18325 | -6/Proximity Caves | Learned Factory stockpile data 18475 | -6/Proximity Caves | Learned location of Extension (-6) 18561 | -6/Proximity Caves | Learned 4 Factory zone layouts 18746 | -6/Proximity Caves | Spotted B-75 Beast 19940 | -6/Proximity Caves | Received a Behemoth hack from an annoying Tinkerer 20433 | -6/Proximity Caves | Discovered new exit (range 14) 20766 | -6/Proximity Caves | Entered Factory 20766 | -6/Factory | Evolved 2 slots: Utility x2 20767 | -6/Factory | Identified exit to Extension 20770 | -6/Factory | Loaded intel: 28 terminal locations 20771 | -6/Factory | Loaded intel: 4 garrison access locations 21022 | -6/Factory | Discovered new exit (range 15) 21431 | -6/Factory | Cargo convoy interrupted 21570 | -6/Factory | Entered Extension 21735 | -6/Extension | Identified System Mapper 21737 | -6/Extension | Identified Quantum Router 21739 | -6/Extension | Rescued a captive Derelict 22118 | -6/Extension | Build established: Hacker-Tank 22231 | -6/Extension | Rescued A7 22393 | -6/Extension | Central database locked down 22786 | -6/Extension | Spotted B-75 Beast 22811 | -6/Extension | Spotted B-75 Beast 22818 | -6/Extension | Allies destroyed B-75 Beast 22844 | -6/Extension | Destroyed B-75 Beast 23389 | -6/Extension | Discovered new exit (range 10) 23391 | -6/Extension | Discovered new exit (range 6) 23415 | -6/Extension | Entered Cetus 23415 | -6/Cetus | Accompanied by 13 allies (A7) 23420 | -6/Cetus | Acquired a Cetus Manufacturing Module code from A7 23430 | -6/Cetus | Spotted Cetus Guard 23430 | -6/Cetus | Spotted Cetus Guard 23432 | -6/Cetus | Spotted Cetus Guard 23432 | -6/Cetus | Spotted Cetus Guard 23439 | -6/Cetus | Allies destroyed Cetus Guard 23440 | -6/Cetus | Allies destroyed Cetus Guard 23443 | -6/Cetus | Allies destroyed Cetus Guard 23445 | -6/Cetus | Allies destroyed Cetus Guard 23524 | -6/Cetus | Started Cetus Manufacturing Module 23549 | -6/Cetus | Manufactured an Enhanced Grunt 23574 | -6/Cetus | Manufactured an Enhanced Grunt 23599 | -6/Cetus | Manufactured an Enhanced Grunt 23624 | -6/Cetus | Manufactured an Enhanced Grunt 23649 | -6/Cetus | Manufactured an Enhanced Grunt 23653 | -6/Cetus | Discovered new exit (range 15) 23707 | -6/Cetus | Spotted Cetus Guard 23707 | -6/Cetus | Spotted Cetus Guard 23711 | -6/Cetus | Spotted Cetus Guard 23715 | -6/Cetus | Allies destroyed Cetus Guard 23716 | -6/Cetus | Spotted Cetus Guard 23717 | -6/Cetus | Allies destroyed Cetus Guard 23718 | -6/Cetus | Allies destroyed Cetus Guard 23804 | -6/Cetus | Discovered new exit (range 15) 23823 | -6/Cetus | Met Revision 17 23904 | -6/Cetus | Escorted A7 to Cetus Mainframe 23945 | -6/Cetus | Entered Archives 23945 | -6/Archives | Accompanied by 2 allies (A7) 23950 | -6/Archives | Received a hacking code to weaken MAIN.C 24049 | -6/Archives | System corruption reached 10% 24301 | -6/Archives | Discovered new exit (range 15) 24324 | -6/Archives | Discovered new exit (range 15) 24349 | -6/Archives | Build established: Scavenger-Tank 25220 | -6/Archives | Entered Hub_04(d) 25343 | -6/Hub_04(d) | Identified exit to Factory 25453 | -6/Hub_04(d) | Spotted B-75 Beast 25461 | -6/Hub_04(d) | Destroyed B-75 Beast 25493 | -6/Hub_04(d) | Disrupted transfer network 25799 | -6/Hub_04(d) | Network Hub disabled 25882 | -6/Hub_04(d) | Entered Factory 25882 | -5/Factory | Evolved 2 slots: Power x1, Utility x1 25967 | -5/Factory | Repaired Centrium Medium Armor Plating 25990 | -5/Factory | Identified exit to Upper Caves 26207 | -5/Factory | Garrison activated, responded to threat 26257 | -5/Factory | Destroyed 7 combat bots 26286 | -5/Factory | Lost 4 parts (1p3w) 26471 | -5/Factory | Garrison activated, responded to threat 26483 | -5/Factory | Entered Upper Caves 26899 | -5/Upper Caves | Learned 4 Factory zone layouts 27127 | -5/Upper Caves | Attracted the attention of an 0b10 checkpoint 27161 | -5/Upper Caves | Discovered new exit (range 15) 27283 | -5/Upper Caves | Entered another Upper Caves area 27309 | -5/Upper Caves | Learned location of Warlord (-4) 27317 | -5/Upper Caves | Identified exit to Factory 27574 | -5/Upper Caves | Learned location of 1 exit from Factory 28521 | -5/Upper Caves | Spotted EG-18T(f) 28522 | -5/Upper Caves | Encountered a Master Thief 28522 | -5/Upper Caves | Spotted WK-PUQ(f) 28523 | -5/Upper Caves | Encountered a Master Thief 28523 | -5/Upper Caves | Spotted TD-TAI(f) 28524 | -5/Upper Caves | Encountered a Master Thief 28524 | -5/Upper Caves | Latent Energy Streamer stolen by Master Thief 28524 | -5/Upper Caves | AWS/Autocannon stolen by Master Thief 28534 | -5/Upper Caves | Destroyed WK-PUQ(f) 28714 | -5/Upper Caves | Discovered new exit (range 9) 28855 | -5/Upper Caves | Entered Zhirov 28855 | -5/Zhirov | Discovered new exit (range 3) 28884 | -5/Zhirov | Met Zhirov 28950 | -5/Zhirov | Found Alien Artifact 28950 | -5/Zhirov | Identified Integrated Dissipator 28950 | -5/Zhirov | Installed Integrated Dissipator, increased core heat dissipation (+20) 28970 | -5/Zhirov | Found Alien Artifact 29131 | -5/Zhirov | Learned location of Quarantine (-2) 29131 | -5/Zhirov | Learned location of Testing (-3) 29131 | -5/Zhirov | Learned location of Command (-1) 29145 | -5/Zhirov | Zhirov requested help retrieving the SGEMP Prototype 29189 | -5/Zhirov | Entered Proximity Caves 29581 | -4/Proximity Caves | Spotted B-86 Titan 29665 | -4/Proximity Caves | Destroyed B-86 Titan 29968 | -4/Proximity Caves | Learned location of Armory (-4) 30014 | -4/Proximity Caves | Learned Research stockpile data 30238 | -4/Proximity Caves | Attracted the attention of an 0b10 outpost 30261 | -4/Proximity Caves | Build established: Scavenger-Gunner 30293 | -4/Proximity Caves | Destroyed 8 combat bots 30624 | -4/Proximity Caves | Discovered exit to Factory (range 5) 30866 | -4/Proximity Caves | Entered Factory 30866 | -4/Factory | Accompanied by 1 ally 30866 | -4/Factory | Evolved 2 slots: Propulsion x2 30867 | -4/Factory | Identified exit to Research 31234 | -4/Factory | Identified Transdimensional Reconstructor 31409 | -4/Factory | Build established: Wizard-Tank 31589 | -4/Factory | Warped through subspace 31737 | -4/Factory | Identified exit to Upper Caves 31737 | -4/Factory | Identified exit to Armory 32027 | -4/Factory | Lost 4 parts (1n1u2w) 32194 | -4/Factory | System corruption reached 10% 32263 | -4/Factory | Destroyed 8 combat bots 32263 | -4/Factory | Lost 9 parts (2p1n3u3w) 32442 | -4/Factory | Lost 6 parts (2p1n1u2w) 32495 | -4/Factory | Found Exp. Targeting Computer 32500 | -4/Factory | Found Exp. Targeting Computer 32504 | -4/Factory | Found Exp. Targeting Computer 32509 | -4/Factory | Found Exp. Targeting Computer 32675 | -4/Factory | Entered Upper Caves 32810 | -4/Upper Caves | Build established: Scavenger-Gunner 33217 | -4/Upper Caves | Attracted the attention of an 0b10 outpost 33752 | -4/Upper Caves | Learned Research terminal intel 33864 | -4/Upper Caves | Discovered new exit (range 13) 33923 | -4/Upper Caves | Encountered a Warlord checkpoint 33982 | -4/Upper Caves | Entered another Upper Caves area 33982 | -4/Upper Caves | Accompanied by 2 allies 34151 | -4/Upper Caves | Discovered exit to Research (range 6) 34589 | -4/Upper Caves | Spotted BU-YLN(f) 34590 | -4/Upper Caves | Spotted FH-TA6(f) 34590 | -4/Upper Caves | Spotted J6-BT3(f) 34591 | -4/Upper Caves | Encountered a Master Thief 34591 | -4/Upper Caves | Encountered a Master Thief 34591 | -4/Upper Caves | Encountered a Master Thief 34591 | -4/Upper Caves | Spotted LQ-EHR(f) 34592 | -4/Upper Caves | Encountered a Master Thief 34595 | -4/Upper Caves | Quantum Rifle stolen by Master Thief 34596 | -4/Upper Caves | Allies destroyed LQ-EHR(f) 34597 | -4/Upper Caves | Destroyed FH-TA6(f) 34619 | -4/Upper Caves | Discovered new exit (range 5) 34998 | -4/Upper Caves | Entered Warlord 35058 | -4/Warlord | System corruption cleaned by Quarantine Array 35257 | -4/Warlord | Build established: Scavenger-Mutant 35273 | -4/Warlord | Found Prototype Special Weapon 35273 | -4/Warlord | Identified RU-N14's Throwing Claymores v3 35281 | -4/Warlord | Found RU-N14's Throwing Claymores v3 35283 | -4/Warlord | Found RU-N14's Throwing Claymores v3 35285 | -4/Warlord | Found RU-N14's Throwing Claymores v3 35289 | -4/Warlord | Found RU-N14's Throwing Claymores v3 35291 | -4/Warlord | Found RU-N14's Throwing Claymores v3 35444 | -4/Warlord | Met Warlord 35455 | -4/Warlord | Opened Warlord's prototype stash 35460 | -4/Warlord | Found Prototype Reactor 35460 | -4/Warlord | Identified Vortex Chain Reactor 35469 | -4/Warlord | Warlord's base attacked by MAIN.C 35477 | -4/Warlord | Found Prototype Hackware 35484 | -4/Warlord | Found Prototype Device 35484 | -4/Warlord | Identified System Purifier 35556 | -4/Warlord | Learned 4 Research zone layouts 35556 | -4/Warlord | Learned 4 Research zone layouts 35557 | -4/Warlord | Learned Armory terminal intel 35557 | -4/Warlord | Learned Research recycling unit intel 35633 | -4/Warlord | Found Prototype Energy Gun 35633 | -4/Warlord | Identified Vortex Shotgun 35636 | -4/Warlord | Found Vortex Shotgun 35642 | -4/Warlord | Found Prototype Energy Gun 35642 | -4/Warlord | Identified Vortex Rail 35645 | -4/Warlord | Found Vortex Rail 35650 | -4/Warlord | Found Prototype Launcher 35819 | -4/Warlord | Warlord forces counterattacked 35833 | -4/Warlord | Spotted Executioner 35857 | -4/Warlord | Spotted Executioner 35875 | -4/Warlord | Found Exp. Targeting Computer 35962 | -4/Warlord | Discovered new exit (range 15) 35969 | -4/Warlord | Spotted Executioner 35970 | -4/Warlord | P-70 Sage assimilated allied OG-TD9(g) 35971 | -4/Warlord | Destroyed Striker 35992 | -4/Warlord | Destroyed 8 combat bots 36004 | -4/Warlord | Entered Proximity Caves 36275 | -3/Proximity Caves | Core integrity fell below 50% 36286 | -3/Proximity Caves | Build established: Scavenger-Gunner 36514 | -3/Proximity Caves | Spotted B-86 Titan 36564 | -3/Proximity Caves | Attracted the attention of an 0b10 checkpoint 37305 | -3/Proximity Caves | Discovered exit to Research (range 6) 37555 | -3/Proximity Caves | Entered Research 37555 | -3/Research | Evolved 2 slots: Utility x2 37556 | -3/Research | Identified exit to Testing 37558 | -3/Research | Loaded intel: 22 terminal locations 37559 | -3/Research | Loaded intel: 4 recycling unit locations 37755 | -3/Research | Revision forces began assault on 0b10 37796 | -3/Research | Met up with Revision 17++ 38039 | -3/Research | Build established: Scavenger-Tank 38099 | -3/Research | Identified Ghost Barrier 38255 | -3/Research | Research terminal network offline 38266 | -3/Research | Found Prototype Device 38266 | -3/Research | Identified Exp. Shield Generator 38271 | -3/Research | Found Exp. Shield Generator 38274 | -3/Research | Found Exp. Shield Generator 38278 | -3/Research | Found Exp. Shield Generator 38368 | -3/Research | Spotted Striker 38381 | -3/Research | Destroyed Striker 38390 | -3/Research | Spotted Striker 38390 | -3/Research | Spotted Striker 38400 | -3/Research | Destroyed Striker 38447 | -3/Research | Build established: Scavenger-Gunner 38465 | -3/Research | Spotted Executioner 38467 | -3/Research | Spotted Striker 38483 | -3/Research | Destroyed Striker 38770 | -3/Research | Spotted Striker 38779 | -3/Research | Destroyed Striker 39466 | -3/Research | Entered Testing 39515 | -3/Testing | Found Unknown Device 39515 | -3/Testing | Identified Antimissile System 39987 | -3/Testing | Garrison activated, responded to threat 40056 | -3/Testing | Found Adv. Powered Armor 40059 | -3/Testing | Found Adv. Powered Armor 40062 | -3/Testing | Found Adv. Powered Armor 40144 | -3/Testing | Build established: Hacker-Gunner 40307 | -3/Testing | Spotted Striker 40309 | -3/Testing | Spotted Striker 40633 | -3/Testing | Build established: Scavenger-Gunner 40665 | -3/Testing | Found Prototype Energy Cannon 40665 | -3/Testing | Identified Null Cannon 40966 | -3/Testing | First assault squad dispatched 41055 | -3/Testing | Destroyed 9 combat bots 41100 | -3/Testing | Spotted PX-JRSEZNEEV8 41573 | -3/Testing | Discovered new exit (range 16) 41677 | -3/Testing | Central database locked down 41715 | -3/Testing | Entered Research 41715 | -2/Research | Warlord forces began assault on 0b10 41715 | -2/Research | Evolved 2 slots: Utility x2 41716 | -2/Research | Identified exit to Quarantine 41825 | -2/Research | Research machine network offline 41849 | -2/Research | Spotted B-90 Cyclops 42009 | -2/Research | Spotted B-90 Cyclops 42265 | -2/Research | Spotted Striker 42280 | -2/Research | Destroyed Striker 42296 | -2/Research | Spotted Striker 42311 | -2/Research | Destroyed Striker 42437 | -2/Research | Found Prototype Reactor 42464 | -2/Research | Entered Quarantine 42677 | -2/Quarantine | Found Alien Artifact 42720 | -2/Quarantine | Found Alien Artifact 42724 | -2/Quarantine | Found Alien Artifact 42726 | -2/Quarantine | Found Alien Artifact 42732 | -2/Quarantine | Found Alien Artifact 42959 | -2/Quarantine | Spotted Alpha 7 43126 | -2/Quarantine | Repaired Broken System Purifier 43214 | -2/Quarantine | First assault squad dispatched 43314 | -2/Quarantine | Identified Hpw. Transdimensional Reconstructor (x4) 43314 | -2/Quarantine | Warped through subspace 43492 | -2/Quarantine | Found Alien Artifact 43492 | -2/Quarantine | Identified Matter Drive 43652 | -2/Quarantine | Found Alien Impact Weapon 43686 | -2/Quarantine | Cryocooling Duct disabled 43686 | -2/Quarantine | Cryocooling Duct disabled 43701 | -2/Quarantine | Ambient heat levels rising (+40) 43701 | -2/Quarantine | Non-combat units ordered to evacuate 43701 | -2/Quarantine | Combat units ordered to evacuate 43801 | -2/Quarantine | Quarantine Guard activated 44167 | -2/Quarantine | Build established: Scavenger-Tank 45028 | -2/Quarantine | Found Alien Slashing Weapon 45028 | -2/Quarantine | Identified Sigix Broadsword 45034 | -2/Quarantine | Discovered new exit (range 5) 45034 | -2/Quarantine | Spotted Quarantine Guard 45034 | -2/Quarantine | Spotted Quarantine Guard 45034 | -2/Quarantine | Spotted Quarantine Guard 45036 | -2/Quarantine | Warped through subspace 45108 | -2/Quarantine | Spotted Quarantine Guard 45120 | -2/Quarantine | Destroyed Quarantine Guard 45235 | -2/Quarantine | Found Alien Energy Cannon 45303 | -2/Quarantine | Destroyed Quarantine Guard 45352 | -2/Quarantine | Build established: Scavenger-Mutant 45375 | -2/Quarantine | Spotted Quarantine Guard 45389 | -2/Quarantine | Destroyed Quarantine Guard 45430 | -2/Quarantine | Identified Core Stripper 45457 | -2/Quarantine | Spotted Fortress 45489 | -2/Quarantine | Destroyed Fortress 45495 | -2/Quarantine | Found Vortex Chain Reactor 45531 | -2/Quarantine | Found Prototype Device 45531 | -2/Quarantine | Identified EM Dispersion Field 45535 | -2/Quarantine | Found Prototype Device 45535 | -2/Quarantine | Identified Thermal Barrier 45546 | -2/Quarantine | Found Prototype Device 45546 | -2/Quarantine | Identified Exp. Force Field 45659 | -2/Quarantine | Discovered new exit (range 7) 45659 | -2/Quarantine | Spotted Quarantine Guard 45668 | -2/Quarantine | Destroyed Quarantine Guard 46489 | -2/Quarantine | Entered Section 7 46528 | -2/Section 7 | Found Alien Artifact 46580 | -2/Section 7 | Identified Subatomic Replicator 46580 | -2/Section 7 | Identified Integrated Reactor 46616 | -2/Section 7 | Used Subatomic Replicator to replicate Integrated Reactor 46617 | -2/Section 7 | Installed Integrated Reactor, increased core energy generation (+10) 46621 | -2/Section 7 | Installed Integrated Reactor, increased core energy generation (+10) 46680 | -2/Section 7 | Found Exp. Hacking Suite 46724 | -2/Section 7 | Discovered new exit (range 16) 46739 | -2/Section 7 | First assault squad dispatched 46759 | -2/Section 7 | Entered Access 46759 | -1/Access | Evolved 2 slots: Power x1, Propulsion x1 47059 | -1/Access | Build established: Generator-Mutant 47214 | -1/Access | Garrison activated, responded to threat 47216 | -1/Access | Warped through subspace 47277 | -1/Access | Spotted B-99 Colossus 47291 | -1/Access | First assault squad dispatched 47307 | -1/Access | Destroyed B-99 Colossus 47316 | -1/Access | Found Prototype Ballistic Gun 47316 | -1/Access | Identified Multirail 47327 | -1/Access | Found Multirail 47444 | -1/Access | Destroyed 9 combat bots 47665 | -1/Access | Spotted B-99 Colossus 47720 | -1/Access | Destroyed B-99 Colossus 47986 | -1/Access | Discovered new exit (range 8) 48028 | -1/Access | Entered Command 48243 | -1/Command | Build established: Generator-Gladiator 48259 | -1/Command | Disengaged cave seal 48259 | -1/Command | Derelicts emerged from the dark tunnel 48259 | -1/Command | Welcomed Warlord to Command 48278 | -1/Command | First assault squad dispatched 48776 | -1/Command | Identified Core Cannon 48791 | -1/Command | Spotted Striker 48795 | -1/Command | Spotted Alpha 7 48800 | -1/Command | Spotted Executioner 48800 | -1/Command | Spotted Executioner 48805 | -1/Command | Destroyed Executioner 48815 | -1/Command | Spotted B-99 Colossus 48831 | -1/Command | Befriended a Behemoth using the annoying Tinkerer's hack 48839 | -1/Command | Found Multirail 48844 | -1/Command | Spotted Alpha 7 48844 | -1/Command | Spotted Striker 48844 | -1/Command | Spotted Executioner 48844 | -1/Command | Spotted Executioner 48846 | -1/Command | Spotted B-99 Colossus 48868 | -1/Command | Befriended a Behemoth using the annoying Tinkerer's hack 48877 | -1/Command | Discovered new exit (range 14) 48936 | -1/Command | Identified Vortex Catalyst Activator 48961 | -1/Command | Spotted Combat Programmer 48968 | -1/Command | Spotted Combat Programmer 48972 | -1/Command | Spotted M Guard 48976 | -1/Command | Spotted M Guard 48984 | -1/Command | Warlord commented on Warlord statues 48997 | -1/Command | Warlord destroyed during the assault 48997 | -1/Command | Destroyed M Guard 48998 | -1/Command | Found Prototype Protection 49009 | -1/Command | Destroyed M Guard 49009 | -1/Command | All MAIN.C guards destroyed 49011 | -1/Command | Found Prototype Reactor 49011 | -1/Command | Identified Zero-point Reactor 49026 | -1/Command | Found Prototype Device 49026 | -1/Command | Identified AEGIS Remote Shield 49057 | -1/Command | Found Zero-point Reactor 49089 | -1/Command | Identified Hvy. Regenerative Plating 49091 | -1/Command | Found AEGIS Remote Shield 49105 | -1/Command | Found Zero-point Reactor 49108 | -1/Command | Found Hvy. Regenerative Plating 49125 | -1/Command | Found Exp. Targeting Computer 49210 | -1/Command | Found Zero-point Reactor 49252 | -1/Command | Met MAIN.C 49258 | -1/Command | 0b10 Conduit disabled 49275 | -1/Command | System corruption reached 10% 49286 | -1/Command | Hacked MAIN.C using A7's code 49363 | -1/Command | Build established: Generator-Mutant 49376 | -1/Command | Allies destroyed MAIN.C Shell 49378 | -1/Command | MAIN.C activated Command garrisons 49423 | -1/Command | Destroyed MAIN.C 49462 | -1/Command | Spotted B-99 Colossus 50320 | -1/Command | Discovered new exit (range 10) 50404 | -1/Command | Found Corrupted Multirail 50414 | -1/Command | Found Multirail 50573 | -1/Command | Found Null Cannon 50582 | -1/Command | Found Prototype Device 50582 | -1/Command | Identified Beam Splitter 50588 | -1/Command | Found Prototype Device 50588 | -1/Command | Identified Exp. Cloaking Device 50626 | -1/Command | Found System Purifier 52781 | -1/Command | Identified Singularity Reactor 52821 | -1/Command | Found Zero-point Reactor 52824 | -1/Command | Found Vortex Chain Reactor 53808 | -1/Command | Found Quantum Capacitor 56204 | -1/Command | Warped through subspace to slip node 56204 | -1/Command | Discovered new exit (range 4) 56210 | -1/Command | Entered Access_0 56211 | -1/Access_0 | Met Architect 56229 | -1/Access_0 | Architect warped through subspace 56245 | -1/Access_0 | Destroyed A8 56293 | -1/Access_0 | Architect warped through subspace 56356 | -1/Access_0 | Architect warped through subspace 56357 | -1/Access_0 | Found Corrupted Prototype Protection 56395 | -1/Access_0 | Architect warped through subspace 56435 | -1/Access_0 | Architect warped through subspace 56478 | -1/Access_0 | Architect warped through subspace 56515 | -1/Access_0 | Found Prototype Processor 56521 | -1/Access_0 | Architect warped through subspace 56553 | -1/Access_0 | Architect warped through subspace 56584 | -1/Access_0 | Architect warped through subspace 56595 | -1/Access_0 | Found Prototype Device 56615 | -1/Access_0 | Architect warped through subspace 56655 | -1/Access_0 | Architect warped through subspace 56725 | -1/Access_0 | Architect warped through subspace 56768 | -1/Access_0 | A6 warped into view 56775 | -1/Access_0 | Destroyed A6 56787 | -1/Access_0 | Architect warped through subspace 56844 | -1/Access_0 | Architect warped through subspace 56851 | -1/Access_0 | Found Alien Artifact 56851 | -1/Access_0 | Identified Core Regenerator 56851 | -1/Access_0 | Used Core Regenerator, restored core integrity (+400) 56908 | -1/Access_0 | Architect warped through subspace 56958 | -1/Access_0 | Architect warped through subspace 56974 | -1/Access_0 | Subspace Access Node disabled 57005 | -1/Access_0 | Architect warped through subspace 57030 | -1/Access_0 | Subspace Access Node disabled 57068 | -1/Access_0 | Architect warped through subspace 57077 | -1/Access_0 | Found Integrated Reactor 57077 | -1/Access_0 | Installed Integrated Reactor, increased core energy generation (+10) 57115 | -1/Access_0 | Architect warped through subspace 57145 | -1/Access_0 | Architect warped through subspace 57157 | -1/Access_0 | A5 warped into view 57173 | -1/Access_0 | Destroyed A5 57179 | -1/Access_0 | Architect warped through subspace 57202 | -1/Access_0 | Architect warped through subspace 57224 | -1/Access_0 | Architect warped through subspace 57253 | -1/Access_0 | Architect warped through subspace 57278 | -1/Access_0 | Architect warped through subspace 57357 | -1/Access_0 | Architect warped through subspace 57399 | -1/Access_0 | Architect warped through subspace 57433 | -1/Access_0 | Architect warped through subspace 57435 | -1/Access_0 | Subspace Access Node disabled 57456 | -1/Access_0 | Identified Spectral Analyzer 57466 | -1/Access_0 | Architect warped through subspace 57505 | -1/Access_0 | Architect warped through subspace 57528 | -1/Access_0 | Found Corrupted Prototype Protection 57535 | -1/Access_0 | Found Corrupted Prototype Protection 57550 | -1/Access_0 | Architect warped through subspace 57590 | -1/Access_0 | Architect warped through subspace 57619 | -1/Access_0 | Architect warped through subspace 57626 | -1/Access_0 | A4 warped into view 57637 | -1/Access_0 | Architect warped through subspace 57637 | -1/Access_0 | Destroyed A4 57653 | -1/Access_0 | Architect warped through subspace 57673 | -1/Access_0 | Architect warped through subspace 57688 | -1/Access_0 | Architect warped through subspace 57706 | -1/Access_0 | Architect warped through subspace 57716 | -1/Access_0 | Architect warped through subspace 57723 | -1/Access_0 | Architect warped through subspace 57726 | -1/Access_0 | Subspace Access Node disabled 57772 | -1/Access_0 | Lost 3 parts (1p1u1w) 57806 | -1/Access_0 | Destroyed Architect 57807 | -1/Access_0 | Architect triggered a singularity event 57809 | -1/Access_0 | Found Hpw. Transdimensional Reconstructor 57809 | -1/Access_0 | Warped through subspace to slip node 57809 | -1/Access_0 | Discovered new exit (range 8) 57817 | *** | Escaped singularity! Last Messages --------------- 57800_ Architect regenerates Prototype Protection. 57800_ Destroyed Prototype Protection. 57800_ Penetrated by Quantum Shear. 57806_ Architect: "If I can't win, no one wins!" 57806_ Architect destroyed. 57807_ A0_COM: Initiating irreversible singularity event. Goodbye. 57808_ A0_COM: 10. 57808_ Discarded Exp. Targeting Computer. 57809_ A0_COM: 9. 57809_ Acquired Hpw. Transdimensional Reconstructor. 57809_ Warped through subspace, drawn to slip node. 57809_ EXIT=FOUND 57810_ A0_COM: 8. 57811_ A0_COM: 7. 57812_ A0_COM: 6. 57813_ A0_COM: 5. 57814_ A0_COM: 4. 57815_ A0_COM: 3. 57816_ A0_COM: 2. 57817_ A0_COM: 1. Map ----- +----------------------------------------------------+ | | | | | | | | | | | | | | | | | | | | | | | | | | | | | | | | | ?????????????????????????????????????????????????? | | ?????????????????????????????????????????????????? | | ?????????????????????????????????????????????????? | | ?????????????????????????????????????????????????? | | ?????????????????????????????????????????????????? | | ?????????????????????????????????????????????????? | | ????????????????????????###??????????????????????? | | ???????????????????????## ##?????????????????????? | | ???????????????????????# #?????????????????????? | | ???????????????????????# @ #?????????????????????? | | ??????????????????????## #?????????????????????? | | ??????????????????????# #?????????????????????? | | ??????????????????????# ##?????????????????????? | | ??????????????????????## #?????????????????????? | | ??????????????????????# #?????????????????????? | | ??????????????????????# ##?????????????????????? | | ??????????????????????# < #?????????????????????? | | ??????????????????????# ##?????????????????????? | | ??????????????????????## #??????????????????????? | | ???????????????????????####??????????????????????? | | ?????????????????????????????????????????????????? | | ?????????????????????????????????????????????????? | | ?????????????????????????????????????????????????? | | ?????????????????????????????????????????????????? | | ?????????????????????????????????????????????????? | | ?????????????????????????????????????????????????? | | ?????????????????????????????????????????????????? | | ?????????????????????????????????????????????????? | | ?????????????????????????????????????????????????? | | ?????????????????????????????????????????????????? | | ?????????????????????????????????????????????????? | | ?????????????????????????????????????????????????? | | ?????????????????????????????????????????????????? | | ?????????????????????????????????????????????????? | +----------------------------------------------------+ Best States ------------- Heat Dissipation 162 Coolant Potential 50 Energy Generation 142 Energy Capacity 1815 Matter Stores 700 Matter Capacity 700 Sight Range 24 Robot Scan Range 16 Terrain Scan Range 16 Terrain Scan Density 60 Power Amplification 40 Armor Coverage 2400 Resistance: TH 30 Resistance: EM 75 Core Shielding 30 Propulsion Shielding 66 Utility Shielding 66 Weapon Shielding 90 Melee Speed Boost 40 Phase Shifting 15 Evasion (%) 77 Targeting Accuracy 36 Target Analysis 8 Core Analysis 8 Recoil Reduction 7 Matter Filtering 30 Salvage Targeting 4 Offensive Hacking 34 Defensive Hacking 26 Item Schematics ----------------- Lgt. Assault Rifle | -10/Materials | Hacked Huge Storage Unit | -10/Materials | Hacked Cargo Storage Unit | -10/Materials | Hacked Adv. Treads | -8/Storage | Hacked Combat Drone Bay | -7/Data Miner | Free Lgt. Regenerative Plating | -7/Data Miner | Free Biomechanical Wings | -7/Data Miner | Free Exp. Targeting Computer | -7/Data Miner | Free Scatter Rocket Array | -7/Data Miner | Free Gyrokinetic Inverter | -7/Data Miner | Free Adv. Hacking Suite | -7/Data Miner | Free Imp. Remote Datajack | -7/Data Miner | Free Imp. System Backup Module | -7/Data Miner | Free Enh. Gauss Cannon | -7/Data Miner | Free System Backup Module | -6/Extension | Hacked Mic. Nuclear Core | -6/Extension | Hacked Assault Drone Bay | -5/Zhirov | Free Exp. Heat Sink | -5/Zhirov | Free Exp. Optical Array | -5/Zhirov | Free Imp. Arc Thrower | -5/Zhirov | Free Imp. Utility Shielding | -4/Factory | Scanalyzed Lgt. Quantum Reactor | -4/Factory | Hacked Hvy. Siege Treads | -4/Factory | Hacked Arm. Huge Wheel | -4/Factory | Hacked Autogun | -4/Factory | Hacked Matter Filter | -4/Factory | Hacked Robot Schematics ------------------ G-47 Trooper | -8/Storage | Hacked B-48 Gladiator | -7/Data Miner | Free R-10 Processor | -7/Data Miner | Free M-14 Sweeper | -7/Data Miner | Free G-50 Soldier | -7/Data Miner | Free B-60 Warrior | -7/Data Miner | Free M-28 Smith | -6/Extension | Hacked O-24 Administrator | -6/Extension | Hacked Fabricated ------------ Y-54 Guardian | x2 | -7/Factory | Preloaded Alien Tech Used ----------------- Integrated Dissipator Transdimensional Reconstructor High-powered Transdimensional Reconstructor Matter Drive Sigix Broadsword Core Stripper Subatomic Replicator Integrated Reactor Core Cannon Core Regenerator Achievements -------------- None Challenges ------------ None Game ------ Seed ArmoredCargoRipper Manual? 0 Play Time 05:59:23 Cumulative 2320.4 hours Start 2021.10.26 @ 23:57:44 End 2021.10.27 @ 10:43:34 Sessions 9 Manual Loads 0 Difficulty Rogue Special Mode None Game No. 2710 Rogue 2702 Adventurer 0 Explorer 8 Win Type 6 Total 271 Types 48/32/97/3/3/5/80/2/1 Lore% 98 Gallery% 98 Achievement% 100 Wizard Run 0 Options --------- ASCII 0 Keyboard 1 Movement Vi Keybinds 1 Fullscreen 1 Font 18/SmallcapsGlow Map View 76x50 Tactical HUD 1 Map Filters NONE Filters NONE Steam 1 RUN: 3a7cc6e2-3da1-4e0f-adfa-296abff87565